Workbook

Sheet Disaggregated
F2: CQG CFTC Disaggreated COT Data | U2: Ribbon
B4: =Sheet1!$P$20 -> Disaggregated COT as a Percentage of Total Open Interest, Weeks: 10/20/20 vs. 08/18/20 | R4: Nominal Difference Between Longs and Shorts
R24: Difference Between Longs and Shorts as a Percentage of OI
E42: =IF(Sheet1!B3=1,Sheet1!B7,"") -> 
C44: Symbol: | D44: ZSE | E44: Date: | F44: =Sheet1!J1 -> 2020-10-20 | H44: Lookback Comparison (Weeks): | L44: -10 | M44: Date: | N44: =Sheet1!N1 -> 2020-08-18
B45: Copyright CQG, Inc. © 2020 | F45: Designed by Thom Hartle

Sheet TradersFinancialFutures
F2: CQG CFTC Traders in Financial Futures | U2: Ribbon
B4: ='Sheet1 (2)'!P20 -> Traders in Financial Futures COT as a Percentage of Total Open Interest, Weeks: 10/20/20 vs. 09/01/20 | R4: Nominal Difference Between Longs and Shorts
R24: Difference Between Longs and Shorts as a Percentage of OI
E42: =IF('Sheet1 (2)'!B3=1,'Sheet1 (2)'!B7,"") -> 
C44: Symbol: | D44: TYA | E44: Date: | F44: =Sheet1!J1 -> 2020-10-20 | H44: Lookback Comparison (Weeks): | L44: -8 | M44: Date: | N44: ='Sheet1 (2)'!N1 -> 2020-09-01
B45: Copyright CQG, Inc. © 2020 | F45: Designed by Thom Hartle

Sheet DisaggregatedNoNum
F2: CQG CFTC Disaggreated Notional COT Data | U2: Ribbon
B4: ='Sheet1 (3)'!P20 -> Disaggregated Notional COT, Weeks: 10/20/20 vs. 08/18/20 | R4: Notional Nominal Difference Between Longs and Shorts
R24: Difference Between Notional Longs and Shorts as a % of Notional OI
E42: =IF(Sheet1!B3=1,Sheet1!B7,"") -> 
C44: Symbol: | D44: ZSE | E44: Date: | F44: =Sheet1!J1 -> 2020-10-20 | H44: Lookback Comparison (Weeks): | L44: -10 | M44: Date: | N44: ='Sheet1 (3)'!N1 -> 2020-08-18
B45: Copyright CQG, Inc. © 2020 | F45: Designed by Thom Hartle

Sheet TradersFinancialFuturesNoNum
F2: CQG CFTC Traders in Financial Futures Notional COT Data | U2: Ribbon
B4: ='Sheet1 (4)'!P20 -> Traders in Financial Futures COT as a Percentage of Total Open Interest, Weeks: 10/20/20 vs. 08/18/20 | R4: Notional Nominal Difference Between Longs and Shorts
R24: Difference Between Notional Longs and Shorts as a % of Notional OI
E42: =IF('Sheet1 (4)'!B3=1,'Sheet1 (2)'!B7,"") -> 
C44: Symbol: | D44: EP | E44: Date: | F44: =Sheet1!J1 -> 2020-10-20 | H44: Lookback Comparison (Weeks): | L44: -10 | M44: Date: | N44: ='Sheet1 (4)'!N1 -> 2020-08-18
B45: Copyright CQG, Inc. © 2020 | F45: Designed by Thom Hartle

Sheet Sheet1 (hidden)
B1: Symbol | C1: =Disaggregated!D44 -> ZSE | D1: =RTD("cqg.rtd", ,"ContractData",C1, "LongDescription",, "T") -> Soybeans (Globex), Jan 21 | H1: Week | I1: =IF(I2="",-1,0) -> -1 | J1: =IF(LEFT(RTD("cqg.rtd",,"StudyData",K6, "Bar", "", "Time","W",I1,,,,,"T"),3)="777","",RTD("cqg.rtd",,"StudyData",K6, "Bar", "", "Time","W",I1,,,,,"T")+1) -> 2020-10-20 | K1: Week | L1: =Disaggregated!L44 -> -10 | N1: =IF(LEFT( RTD("cqg.rtd",,"StudyData",K6, "Bar", "", "Time","W",L1,,,,,"T"),3)="777","",RTD("cqg.rtd",,"StudyData",K6, "Bar", "", "Time","W",L1,,,,,"T")+1) -> 2020-08-18
I2: =RTD("cqg.rtd",,"StudyData",K6, "Bar", "", "Close","W",0,,,,,"T") ->  | J2: =J1+1 -> 2020-10-21 | K2: =RTD("cqg.rtd",,"StudyData", "OI("&C1&",OIType:=CommodityOi) when (LocalMonth("&$C$1&")="&MONTH(J2)&" and LocalDay("&$C$1&")="&DAY(J2)&" and LocalYear("&$C$1&")="&YEAR(J2)&")", "Bar", "", "Close", "D", "0", "all", "", "","FALSE","T") -> 1049850 | N2: =N1+1 -> 2020-08-19 | O2: =IF(P2="",RTD("cqg.rtd",,"StudyData","OI("&C1&",OIType:=CommodityOi) when (LocalMonth("&$C$1&")="&MONTH(N2)&" and LocalDay("&$C$1&")="&DAY(N2)+1&" and LocalYear("&$C$1&")="&YEAR(N2)&")","Bar","","Close","ADC","0","all","","","FALSE","T"),RTD("cqg.rtd",,"StudyData","OI("&C1&",OIType:=CommodityOi) when (LocalMonth("&$C$1&")="&MONTH(N2)&" and LocalDay("&$C$1&")="&DAY(N2)&" and LocalYear("&$C$1&")="&YEAR(N2)&")","Bar","","Close","ADC","0","all","","","FALSE","T")) -> 844099 | P2: =RTD("cqg.rtd",,"StudyData", "OI("&C1&",OIType:=CommodityOi) when (LocalMonth("&$C$1&")="&MONTH(N2)&" and LocalDay("&$C$1&")="&DAY(N1)+1&" and LocalYear("&$C$1&")="&YEAR(N2)&")", "Bar", "", "Close", "ADC", "0", "all", "", "","FALSE","T") -> 844099
B3: =IF(LEFT(I2,3)="777",1,0) -> 0 | J3: =J1 -> 2020-10-20 | K3: =RTD("cqg.rtd",,"StudyData", "PriceToDollar("&C1&",InputChoice=Close) when (LocalMonth("&$C$1&")="&MONTH(J3)&" and LocalDay("&$C$1&")="&DAY(J3)&" and LocalYear("&$C$1&")="&YEAR(J3)&")", "Bar", "", "Close", "D", "0", "all", "", "","FALSE","T") -> 53187.5 | N3: =N1 -> 2020-08-18 | O3: =RTD("cqg.rtd",,"StudyData", "PriceToDollar("&C1&",InputChoice=Close) when (LocalMonth("&$C$1&")="&MONTH(N3)&" and LocalDay("&$C$1&")="&DAY(N3)&" and LocalYear("&$C$1&")="&YEAR(N3)&")", "Bar", "", "Close", "ADC", "0", "all", "", "","FALSE","T") -> 45687.5 | S3: , &TEXT(AC6,".0%")
B5: Agriculture, Petroleum and Products, Natural Gas and Products, Electricity or Metals
H6: =K3*N6 -> 3237044438 | K6: ="X.US."&$C$1&L6 -> X.US.ZSEOFSDSPR | L6: OFSDSPR | N6: =RTD("cqg.rtd",,"StudyData",K6, "Bar", "", "Close","W",$I$1,,,,,"T") -> 60861 | O6: =N6/$K$2 -> 0.05797113873 | P6: =VLOOKUP(K6,Symbols!$A$1:$B$3103,2,FALSE) -> Soybeans Options and Futures Combined Swap Dealers Spreading | Q6: =P6&", "&TEXT(O6,".0%") -> Soybeans Options and Futures Combined Swap Dealers Spreading, 5.8% | Y6: ="X.US."&$C$1&Z6 -> X.US.ZSEOFSDSPR | Z6: OFSDSPR | AB6: =RTD("cqg.rtd",,"StudyData",Y6, "Bar", "", "Close","W",$L$1,,,,,"T") -> 27698 | AC6: =AB6/$O$2 -> 0.03281368655 | AD6: =P6&", "&TEXT(AC6,".0%") -> Soybeans Options and Futures Combined Swap Dealers Spreading, 3.3%
B7: Incorrect Symbol. Please enter an Agriculture, Petroleum and Products, Natural Gas and Products, or Metals symbol. | K7: ="X.US."&$C$1&L7 -> X.US.ZSEOFSDSHT | L7: OFSDSHT | N7: =RTD("cqg.rtd",,"StudyData",K7, "Bar", "", "Close","W",$I$1,,,,,"T") -> 40273 | O7: =N7/$K$2 -> 0.0383607182 | P7: =VLOOKUP(K7,Symbols!$A$1:$B$3103,2,FALSE) -> Soybeans Options and Futures Combined Swap Dealers Short | Q7: =P7&", "&TEXT(O7,".0%") -> Soybeans Options and Futures Combined Swap Dealers Short, 3.8% | Y7: ="X.US."&$C$1&Z7 -> X.US.ZSEOFSDSHT | Z7: OFSDSHT | AB7: =RTD("cqg.rtd",,"StudyData",Y7, "Bar", "", "Close","W",$L$1,,,,,"T") -> 19129 | AC7: =AB7/$O$2 -> 0.02266203372 | AD7: =P7&", "&TEXT(AC7,".0%") -> Soybeans Options and Futures Combined Swap Dealers Short, 2.3%
K8: X.US.ZSEOFSDLONG | L8: OFSDLONG | N8: =RTD("cqg.rtd",,"StudyData",K8, "Bar", "", "Close","W",$I$1,,,,,"T") -> 162576 | O8: 0.1548564081 | P8: =VLOOKUP(K8,Symbols!$A$1:$B$3103,2,FALSE) -> Soybeans Options and Futures Combined Swap Dealers Long | Q8: Soybeans Options and Futures Combined Swap Dealers Long, 15.5% | Y8: X.US.ZSEOFSDLONG | Z8: OFSDLONG | AB8: =RTD("cqg.rtd",,"StudyData",Y8, "Bar", "", "Close","W",$L$1,,,,,"T") -> 153028 | AC8: 0.181291531 | AD8: Soybeans Options and Futures Combined Swap Dealers Long, 18.1%
K9: X.US.ZSEOFPMPUSHT | L9: OFPMPUSHT | N9: =RTD("cqg.rtd",,"StudyData",K9, "Bar", "", "Close","W",$I$1,,,,,"T") -> 728305 | O9: 0.6937229128 | P9: =VLOOKUP(K9,Symbols!$A$1:$B$3103,2,FALSE) -> Soybeans Options and Futures Combined Producer/Merchant/Processor/User Short | Q9: Soybeans Options and Futures Combined Producer/Merchant/Processor/User Short, 69.4% | Y9: X.US.ZSEOFPMPUSHT | Z9: OFPMPUSHT | AB9: =RTD("cqg.rtd",,"StudyData",Y9, "Bar", "", "Close","W",$L$1,,,,,"T") -> 537241 | AC9: 0.6364668125 | AD9: Soybeans Options and Futures Combined Producer/Merchant/Processor/User Short, 63.6%
E10: =I2 ->  | K10: X.US.ZSEOFPMPULONG | L10: OFPMPULONG | N10: =RTD("cqg.rtd",,"StudyData",K10, "Bar", "", "Close","W",$I$1,,,,,"T") -> 355265 | O10: 0.3383959613 | P10: =VLOOKUP(K10,Symbols!$A$1:$B$3103,2,FALSE) -> Soybeans Options and Futures Combined Producer/Merchant/Processor/User Long | Q10: Soybeans Options and Futures Combined Producer/Merchant/Processor/User Long, 33.8% | Y10: X.US.ZSEOFPMPULONG | Z10: OFPMPULONG | AB10: =RTD("cqg.rtd",,"StudyData",Y10, "Bar", "", "Close","W",$L$1,,,,,"T") -> 279321 | AC10: 0.3309102368 | AD10: Soybeans Options and Futures Combined Producer/Merchant/Processor/User Long, 33.1%
K11: X.US.ZSEOFORSPR | L11: OFORSPR | N11: =RTD("cqg.rtd",,"StudyData",K11, "Bar", "", "Close","W",$I$1,,,,,"T") -> 245410 | O11: 0.2337572034 | P11: =VLOOKUP(K11,Symbols!$A$1:$B$3103,2,FALSE) -> Soybeans Options and Futures Combined Other Reportables Spreading | Q11: Soybeans Options and Futures Combined Other Reportables Spreading, 23.4% | Y11: X.US.ZSEOFORSPR | Z11: OFORSPR | AB11: =RTD("cqg.rtd",,"StudyData",Y11, "Bar", "", "Close","W",$L$1,,,,,"T") -> 145674 | AC11: 0.1725792828 | AD11: Soybeans Options and Futures Combined Other Reportables Spreading, 17.3%
K12: X.US.ZSEOFORSHT | L12: OFORSHT | N12: =RTD("cqg.rtd",,"StudyData",K12, "Bar", "", "Close","W",$I$1,,,,,"T") -> 40451 | O12: 0.03853026623 | P12: =VLOOKUP(K12,Symbols!$A$1:$B$3103,2,FALSE) -> Soybeans Options and Futures Combined Other Reportables Short | Q12: Soybeans Options and Futures Combined Other Reportables Short, 3.9% | Y12: X.US.ZSEOFORSHT | Z12: OFORSHT | AB12: =RTD("cqg.rtd",,"StudyData",Y12, "Bar", "", "Close","W",$L$1,,,,,"T") -> 35601 | AC12: 0.0421763324 | AD12: Soybeans Options and Futures Combined Other Reportables Short, 4.2%
K13: X.US.ZSEOFORLONG | L13: OFORLONG | N13: =RTD("cqg.rtd",,"StudyData",K13, "Bar", "", "Close","W",$I$1,,,,,"T") -> 67656 | O13: 0.06444349193 | P13: =VLOOKUP(K13,Symbols!$A$1:$B$3103,2,FALSE) -> Soybeans Options and Futures Combined Other Reportables Long | Q13: Soybeans Options and Futures Combined Other Reportables Long, 6.4% | Y13: X.US.ZSEOFORLONG | Z13: OFORLONG | AB13: =RTD("cqg.rtd",,"StudyData",Y13, "Bar", "", "Close","W",$L$1,,,,,"T") -> 57753 | AC13: 0.06841969959 | AD13: Soybeans Options and Futures Combined Other Reportables Long, 6.8%
K14: X.US.ZSEOFNRSHT | L14: OFNRSHT | N14: =RTD("cqg.rtd",,"StudyData",K14, "Bar", "", "Close","W",$I$1,,,,,"T") -> 88105 | O14: 0.0839215126 | P14: =VLOOKUP(K14,Symbols!$A$1:$B$3103,2,FALSE) -> Soybeans Options and Futures Combined Nonreportable Short | Q14: Soybeans Options and Futures Combined Nonreportable Short, 8.4% | Y14: X.US.ZSEOFNRSHT | Z14: OFNRSHT | AB14: =RTD("cqg.rtd",,"StudyData",Y14, "Bar", "", "Close","W",$L$1,,,,,"T") -> 70341 | AC14: 0.08333264226 | AD14: Soybeans Options and Futures Combined Nonreportable Short, 8.3%
K15: X.US.ZSEOFNRLONG | L15: OFNRLONG | N15: =RTD("cqg.rtd",,"StudyData",K15, "Bar", "", "Close","W",$I$1,,,,,"T") -> 79746 | O15: 0.07595942277 | P15: =VLOOKUP(K15,Symbols!$A$1:$B$3103,2,FALSE) -> Soybeans Options and Futures Combined Nonreportable Long | Q15: Soybeans Options and Futures Combined Nonreportable Long, 7.6% | Y15: X.US.ZSEOFNRLONG | Z15: OFNRLONG | AB15: =RTD("cqg.rtd",,"StudyData",Y15, "Bar", "", "Close","W",$L$1,,,,,"T") -> 65152 | AC15: 0.07718525908 | AD15: Soybeans Options and Futures Combined Nonreportable Long, 7.7%
K16: X.US.ZSEOFMMSPR | L16: OFMMSPR | N16: =RTD("cqg.rtd",,"StudyData",K16, "Bar", "", "Close","W",$I$1,,,,,"T") -> 119450 | O16: 0.1137781588 | P16: =VLOOKUP(K16,Symbols!$A$1:$B$3103,2,FALSE) -> Soybeans Options and Futures Combined Managed Money Spreading | Q16: Soybeans Options and Futures Combined Managed Money Spreading, 11.4% | Y16: X.US.ZSEOFMMSPR | Z16: OFMMSPR | AB16: =RTD("cqg.rtd",,"StudyData",Y16, "Bar", "", "Close","W",$L$1,,,,,"T") -> 121360 | AC16: 0.1437746046 | AD16: Soybeans Options and Futures Combined Managed Money Spreading, 14.4%
K17: X.US.ZSEOFMMSHT | L17: OFMMSHT | N17: =RTD("cqg.rtd",,"StudyData",K17, "Bar", "", "Close","W",$I$1,,,,,"T") -> 3509 | O17: 0.003342382245 | P17: =VLOOKUP(K17,Symbols!$A$1:$B$3103,2,FALSE) -> Soybeans Options and Futures Combined Managed Money Short | Q17: Soybeans Options and Futures Combined Managed Money Short, .3% | Y17: X.US.ZSEOFMMSHT | Z17: OFMMSHT | AB17: =RTD("cqg.rtd",,"StudyData",Y17, "Bar", "", "Close","W",$L$1,,,,,"T") -> 26393 | AC17: 0.03126765936 | AD17: Soybeans Options and Futures Combined Managed Money Short, 3.1%
K18: X.US.ZSEOFMMLONG | L18: OFMMLONG | N18: =RTD("cqg.rtd",,"StudyData",K18, "Bar", "", "Close","W",$I$1,,,,,"T") -> 235401 | O18: 0.2242234605 | P18: =VLOOKUP(K18,Symbols!$A$1:$B$3103,2,FALSE) -> Soybeans Options and Futures Combined Managed Money Long | Q18: Soybeans Options and Futures Combined Managed Money Long, 22.4% | Y18: X.US.ZSEOFMMLONG | Z18: OFMMLONG | AB18: =RTD("cqg.rtd",,"StudyData",Y18, "Bar", "", "Close","W",$L$1,,,,,"T") -> 133451 | AC18: 0.1580987538 | AD18: Soybeans Options and Futures Combined Managed Money Long, 15.8%
N20: =N10-N9 -> -373040 | P20: ="Disaggregated COT as a Percentage of Total Open Interest, Weeks: "&TEXT(Q21,"MM/DD/YY")&" vs. "&TEXT(R21,"MM/DD/YY") -> Disaggregated COT as a Percentage of Total Open Interest, Weeks: 10/20/20 vs. 08/18/20
Q21: =J1 -> 2020-10-20 | R21: =N1 -> 2020-08-18 | AC21: =IFERROR(N6/$K$2,"NA") -> 0.05797113873 | AD21: =P6&", "&TEXT(AC21,".00%")&" "&AE21&" "&TEXT(AF21,".00%") -> Soybeans Options and Futures Combined Swap Dealers Spreading, 5.80% ∆ 2.52% | AE21: ∆ | AF21: =IFERROR(O6-AC6,"NA") -> 0.02515745219
AC22: =IFERROR(N7/$K$2,"NA") -> 0.0383607182 | AD22: =P7&", "&TEXT(AC22,".00%")&" "&AE22&" "&TEXT(AF22,".00%") -> Soybeans Options and Futures Combined Swap Dealers Short, 3.84% ∆ 1.57% | AE22: ∆ | AF22: =IFERROR(O7-AC7,"NA") -> 0.01569868448
AC23: 0.1548564081 | AD23: Soybeans Options and Futures Combined Swap Dealers Long, 15.49% ∆ -2.64% | AE23: ∆ | AF23: -0.02643512291
AC24: 0.6937229128 | AD24: Soybeans Options and Futures Combined Producer/Merchant/Processor/User Short, 69.37% ∆ 5.73% | AE24: ∆ | AF24: 0.05725610025
AC25: 0.3383959613 | AD25: Soybeans Options and Futures Combined Producer/Merchant/Processor/User Long, 33.84% ∆ .75% | AE25: ∆ | AF25: 0.007485724495
AC26: 0.2337572034 | AD26: Soybeans Options and Futures Combined Other Reportables Spreading, 23.38% ∆ 6.12% | AE26: ∆ | AF26: 0.06117792065
AC27: 0.03853026623 | AD27: Soybeans Options and Futures Combined Other Reportables Short, 3.85% ∆ -.36% | AE27: ∆ | AF27: -0.003646066169
AC28: 0.06444349193 | AD28: Soybeans Options and Futures Combined Other Reportables Long, 6.44% ∆ -.40% | AE28: ∆ | AF28: -0.003976207658
AC29: 0.0839215126 | AD29: Soybeans Options and Futures Combined Nonreportable Short, 8.39% ∆ .06% | AE29: ∆ | AF29: 0.0005888703359
AC30: 0.07595942277 | AD30: Soybeans Options and Futures Combined Nonreportable Long, 7.60% ∆ -.12% | AE30: ∆ | AF30: -0.0012258363
AC31: 0.1137781588 | AD31: Soybeans Options and Futures Combined Managed Money Spreading, 11.38% ∆ -3.00% | AE31: ∆ | AF31: -0.02999644585
AC32: 0.003342382245 | AD32: Soybeans Options and Futures Combined Managed Money Short, .33% ∆ -2.79% | AE32: ∆ | AF32: -0.02792527712
AC33: 0.2242234605 | AD33: Soybeans Options and Futures Combined Managed Money Long, 22.42% ∆ 6.61% | AE33: ∆ | AF33: 0.06612470668
N59: X.US.ZSEOFPMPUDIFF | O59: Soybeans Options and Futures Combined Producer/Merchant/Processor/User Long/Short Diff | AD59: Soybeans Options and Futures Combined
AD60: Producer/Merchant/Processor/User Long/Short Diff
O61: =RTD("cqg.rtd",,"StudyData",N59, "Bar", "", "Close","W",-1,,,,,"T") -> -373040 | P61: =RTD("cqg.rtd",,"StudyData",N59, "Bar", "", "Close","W",-4,,,,,"T") -> -351874 | Q61: =O61-P61 -> -21166 | Z61: =LEN(O59) -> 86

Sheet Sheet2 (hidden)
N1: Vlookup | O1: Symbol | P1: Volume | Q1: rank1 | R1: rank2
N2: =R2 -> 6 | O2: A | P2: 100 | Q2: =RANK($P2,$P$2:P$7) -> 6 | R2: =RANK($P2,$P$2:P$7)+COUNTIF($P$2:P2,P2)-1 -> 6 | S2: =RANK($P2,$P$2:P$7)+COUNTIF($P$2:P2,P2)-1 -> 6
N3: =R3 -> 3 | O3: B | P3: 103 | Q3: =RANK($P3,$P$2:P$7) -> 3 | R3: =RANK($P3,$P$2:P$7)+COUNTIF($P$2:P3,P3)-1 -> 3 | S3: =RANK($P3,$P$2:P$7)+COUNTIF($P$2:P3,P3)-1 -> 3
N4: 5 | O4: C | P4: 102 | Q4: =RANK($P4,$P$2:P$7) -> 5 | R4: =RANK($P4,$P$2:P$7)+COUNTIF($P$2:P4,P4)-1 -> 5 | S4: =RANK($P4,$P$2:P$7)+COUNTIF($P$2:P4,P4)-1 -> 5
N5: 4 | O5: D | P5: 103 | Q5: =RANK($P5,$P$2:P$7) -> 3 | R5: =RANK($P5,$P$2:P$7)+COUNTIF($P$2:P5,P5)-1 -> 4 | S5: =RANK($P5,$P$2:P$7)+COUNTIF($P$2:P5,P5)-1 -> 4
N6: =R6 -> 2 | O6: E | P6: 104 | Q6: =RANK($P6,$P$2:P$7) -> 2 | R6: =RANK($P6,$P$2:P$7)+COUNTIF($P$2:P6,P6)-1 -> 2 | S6: =RANK($P6,$P$2:P$7)+COUNTIF($P$2:P6,P6)-1 -> 2
N7: 1 | O7: F | P7: 105 | Q7: =RANK($P7,$P$2:P$7) -> 1 | R7: =RANK($P7,$P$2:P$7)+COUNTIF($P$2:P7,P7)-1 -> 1 | S7: =RANK($P7,$P$2:P$7)+COUNTIF($P$2:P7,P7)-1 -> 1
A8: =RANK($C8,$C$8:C$12)+COUNTIF($C$8:C8,C8)-1 -> 2 | B8: ="X.US."&Sheet1!$C$1&"OFSDDIFF" -> X.US.ZSEOFSDDIFF | C8: =RTD("cqg.rtd",,"StudyData",B8, "Bar", "", "Close","W",-1,,,,,"T") -> 122303 | D8: =VLOOKUP(B8,Symbols!$A$1:$B$3103,2,FALSE) -> Soybeans Options and Futures Combined Swap Dealers Long/Short Diff | N8: =VLOOKUP(O8,$A$8:$D$12,2,FALSE) -> X.US.ZSEOFMMDIFF | O8: 1 | P8: =VLOOKUP(O8,$A$8:$D$12,3,FALSE) -> 231892 | Q8: =VLOOKUP(O8,$A$8:$D$12,4,FALSE) -> Soybeans Options and Futures Combined Managed Money Long/Short Diff
A9: =RANK($C9,$C$8:C$12)+COUNTIF($C$8:C9,C9)-1 -> 5 | B9: ="X.US."&Sheet1!$C$1&"OFPMPUDIFF" -> X.US.ZSEOFPMPUDIFF | C9: =RTD("cqg.rtd",,"StudyData",B9, "Bar", "", "Close","W",-1,,,,,"T") -> -373040 | D9: =VLOOKUP(B9,Symbols!$A$1:$B$3103,2,FALSE) -> Soybeans Options and Futures Combined Producer/Merchant/Processor/User Long/Short Diff | N9: =VLOOKUP(O9,$A$8:$D$12,2,FALSE) -> X.US.ZSEOFSDDIFF | O9: 2 | P9: =VLOOKUP(O9,$A$8:$D$12,3,FALSE) -> 122303 | Q9: =VLOOKUP(O9,$A$8:$D$12,4,FALSE) -> Soybeans Options and Futures Combined Swap Dealers Long/Short Diff
A10: =RANK($C10,$C$8:C$12)+COUNTIF($C$8:C10,C10)-1 -> 3 | B10: ="X.US."&Sheet1!$C$1&"OFORDIFF" -> X.US.ZSEOFORDIFF | C10: =RTD("cqg.rtd",,"StudyData",B10, "Bar", "", "Close","W",-1,,,,,"T") -> 27205 | D10: =VLOOKUP(B10,Symbols!$A$1:$B$3103,2,FALSE) -> Soybeans Options and Futures Combined Other Reportables Long/Short Diff | N10: X.US.ZSEOFORDIFF | O10: 3 | P10: 27205 | Q10: Soybeans Options and Futures Combined Other Reportables Long/Short Diff
A11: =RANK($C11,$C$8:C$12)+COUNTIF($C$8:C11,C11)-1 -> 4 | B11: ="X.US."&Sheet1!$C$1&"OFNRDIFF" -> X.US.ZSEOFNRDIFF | C11: =RTD("cqg.rtd",,"StudyData",B11, "Bar", "", "Close","W",-1,,,,,"T") -> -8359 | D11: =VLOOKUP(B11,Symbols!$A$1:$B$3103,2,FALSE) -> Soybeans Options and Futures Combined Nonreportable Long/Short Diff | N11: X.US.ZSEOFNRDIFF | O11: 4 | P11: -8359 | Q11: Soybeans Options and Futures Combined Nonreportable Long/Short Diff
A12: =RANK($C12,$C$8:C$12)+COUNTIF($C$8:C12,C12)-1 -> 1 | B12: ="X.US."&Sheet1!$C$1&"OFMMDIFF" -> X.US.ZSEOFMMDIFF | C12: =RTD("cqg.rtd",,"StudyData",B12, "Bar", "", "Close","W",-1,,,,,"T") -> 231892 | D12: =VLOOKUP(B12,Symbols!$A$1:$B$3103,2,FALSE) -> Soybeans Options and Futures Combined Managed Money Long/Short Diff | N12: X.US.ZSEOFPMPUDIFF | O12: 5 | P12: -373040 | Q12: Soybeans Options and Futures Combined Producer/Merchant/Processor/User Long/Short Diff
C14: =Sheet1!K2 -> 1049850
L15: =Sheet1!L1 -> -10 | N15: =RTD("cqg.rtd",,"StudyData",N8, "Bar", "", "Close","W",$L$15,,,,,"T") -> 107058
C16: =ABS(C8/$C$14) -> 0.1164956899 | N16: =RTD("cqg.rtd",,"StudyData",N9, "Bar", "", "Close","W",$L$15,,,,,"T") -> 133899
C17: =ABS(C9/$C$14) -> 0.3553269515 | N17: =RTD("cqg.rtd",,"StudyData",N10, "Bar", "", "Close","W",$L$15,,,,,"T") -> 22152
C18: 0.0259132257 | N18: =RTD("cqg.rtd",,"StudyData",N11, "Bar", "", "Close","W",$L$15,,,,,"T") -> -5189
C19: 0.007962089822 | N19: =RTD("cqg.rtd",,"StudyData",N12, "Bar", "", "Close","W",$L$15,,,,,"T") -> -257920
C20: 0.2208810782
N21: =Sheet1!O2 -> 844099
N23: =ABS(N15/$N$21) -> 0.1268310945
N24: =ABS(N16/$N$21) -> 0.1586294973
N25: 0.02624336719
N26: 0.006147383186
N27: 0.3055565757

Sheet Sheet1 (2) (hidden)
B1: Symbol | C1: =TradersFinancialFutures!D44 -> TYA | D1: =RTD("cqg.rtd", ,"ContractData",C1, "LongDescription",, "T") -> 10yr US Treasury Notes (Globex), Dec 20 | H1: Week | I1: =IF(I2="",-1,0) -> -1 | J1: =IF(LEFT(RTD("cqg.rtd",,"StudyData",K6, "Bar", "", "Time","W",I1,,,,,"T"),3)="777","",RTD("cqg.rtd",,"StudyData",K6, "Bar", "", "Time","W",I1,,,,,"T")+1) -> 2020-10-20 | K1: Week | L1: =TradersFinancialFutures!L44 -> -8 | N1: =IF(LEFT( RTD("cqg.rtd",,"StudyData",K6, "Bar", "", "Time","W",L1,,,,,"T"),3)="777","",RTD("cqg.rtd",,"StudyData",K6, "Bar", "", "Time","W",L1,,,,,"T")+1) -> 2020-09-01
I2: =RTD("cqg.rtd",,"StudyData",K6, "Bar", "", "Close","W",0,,,,,"T") ->  | J2: =J1+1 -> 2020-10-21 | K2: =RTD("cqg.rtd",,"StudyData", "OI("&C1&",OIType:=CommodityOi) when (LocalMonth("&$C$1&")="&MONTH(J2)&" and LocalDay("&$C$1&")="&DAY(J2)&" and LocalYear("&$C$1&")="&YEAR(J2)&")", "Bar", "", "Close", "D", "0", "all", "", "","FALSE","T") -> 3183549 | N2: =N1+1 -> 2020-09-02 | O2: =IF(P2="",RTD("cqg.rtd",,"StudyData","OI("&C1&",OIType:=CommodityOi) when (LocalMonth("&$C$1&")="&MONTH(N2)&" and LocalDay("&$C$1&")="&DAY(N2)+1&" and LocalYear("&$C$1&")="&YEAR(N2)&")","Bar","","Close","D","0","all","","","FALSE","T"),RTD("cqg.rtd",,"StudyData","OI("&C1&",OIType:=CommodityOi) when (LocalMonth("&$C$1&")="&MONTH(N2)&" and LocalDay("&$C$1&")="&DAY(N2)&" and LocalYear("&$C$1&")="&YEAR(N2)&")","Bar","","Close","D","0","all","","","FALSE","T")) -> 3374018 | P2: =RTD("cqg.rtd",,"StudyData", "OI("&C1&",OIType:=CommodityOi) when (LocalMonth("&$C$1&")="&MONTH(N2)&" and LocalDay("&$C$1&")="&DAY(N1)+1&" and LocalYear("&$C$1&")="&YEAR(N2)&")", "Bar", "", "Close", "D", "0", "all", "", "","FALSE","T") -> 3374018
B3: =IF(LEFT(I2,3)="777",1,0) -> 0 | J3: =J1 -> 2020-10-20 | K3: =RTD("cqg.rtd",,"StudyData", "PriceToDollar("&C1&",InputChoice:=Close) when (LocalMonth("&$C$1&")="&MONTH(J3)&" and LocalDay("&$C$1&")="&DAY(J3)&" and LocalYear("&$C$1&")="&YEAR(J3)&")", "Bar", "", "Close", "D", "0", "all", "", "","FALSE","T") -> 138703.125 | N3: =N1 -> 2020-09-01 | O3: =RTD("cqg.rtd",,"StudyData","PriceToDollar("&C1&",InputChoice:=Close) when (LocalMonth("&$C$1&")="&N4&" and LocalDay("&$C$1&")="&O4&" and LocalYear("&$C$1&")="&P4&")","Bar","","Close","ADC","0","all","","","FALSE","T") -> 128421.875 | S3: , &TEXT(AC6,".0%")
N4: 12 | O4: 31 | P4: 2019
B5: Agriculture, Petroleum and Products, Natural Gas and Products, Electricity or Metals
K6: ="X.US."&$C$1&L6 -> X.US.TYAOFAMILONG | L6: OFAMILONG | N6: =RTD("cqg.rtd",,"StudyData",K6, "Bar", "", "Close","W",$I$1,,,,,"T") -> 1379468 | O6: =N6/$K$2 -> 0.4333113767 | P6: =VLOOKUP(K6,Symbols!$A$1:$B$3103,2,FALSE) -> US 10Y T-note Options and Futures Combined Asset Manager/Institutional Long | Q6: =P6&", "&TEXT(O6,".0%") -> US 10Y T-note Options and Futures Combined Asset Manager/Institutional Long, 43.3% | Y6: ="X.US."&$C$1&Z6 -> X.US.TYAOFAMILONG | Z6: OFAMILONG | AB6: =RTD("cqg.rtd",,"StudyData",Y6, "Bar", "", "Close","W",$L$1,,,,,"T") -> 1337774 | AC6: =AB6/$O$2 -> 0.3964928462 | AD6: =P6&", "&TEXT(AC6,".0%") -> US 10Y T-note Options and Futures Combined Asset Manager/Institutional Long, 39.6%
B7: Incorrect Symbol. Please enter a Financial Futures symbol. | K7: ="X.US."&$C$1&L7 -> X.US.TYAOFAMISHT | L7: OFAMISHT | N7: =RTD("cqg.rtd",,"StudyData",K7, "Bar", "", "Close","W",$I$1,,,,,"T") -> 1196965 | O7: =N7/$K$2 -> 0.3759844752 | P7: =VLOOKUP(K7,Symbols!$A$1:$B$3103,2,FALSE) -> US 10Y T-note Options and Futures Combined Asset Manager/Institutional Short | Q7: =P7&", "&TEXT(O7,".0%") -> US 10Y T-note Options and Futures Combined Asset Manager/Institutional Short, 37.6% | Y7: ="X.US."&$C$1&Z7 -> X.US.TYAOFAMISHT | Z7: OFAMISHT | AB7: =RTD("cqg.rtd",,"StudyData",Y7, "Bar", "", "Close","W",$L$1,,,,,"T") -> 1143784 | AC7: =AB7/$O$2 -> 0.3389975987 | AD7: =P7&", "&TEXT(AC7,".0%") -> US 10Y T-note Options and Futures Combined Asset Manager/Institutional Short, 33.9%
K8: X.US.TYAOFAMISPR | L8: OFAMISPR | N8: =RTD("cqg.rtd",,"StudyData",K8, "Bar", "", "Close","W",$I$1,,,,,"T") -> 690639 | O8: 0.2169399623 | P8: =VLOOKUP(K8,Symbols!$A$1:$B$3103,2,FALSE) -> US 10Y T-note Options and Futures Combined Asset Manager/Institutional Spreading | Q8: US 10Y T-note Options and Futures Combined Asset Manager/Institutional Spreading, 21.7% | Y8: X.US.TYAOFAMISPR | Z8: OFAMISPR | AB8: =RTD("cqg.rtd",,"StudyData",Y8, "Bar", "", "Close","W",$L$1,,,,,"T") -> 667536 | AC8: 0.1978460103 | AD8: US 10Y T-note Options and Futures Combined Asset Manager/Institutional Spreading, 19.8%
K9: X.US.TYAOFDILONG | L9: OFDILONG | N9: =RTD("cqg.rtd",,"StudyData",K9, "Bar", "", "Close","W",$I$1,,,,,"T") -> 182965 | O9: 0.05747202258 | P9: =VLOOKUP(K9,Symbols!$A$1:$B$3103,2,FALSE) -> US 10Y T-note Options and Futures Combined Dealer Intermediary Long | Q9: US 10Y T-note Options and Futures Combined Dealer Intermediary Long, 5.7% | Y9: X.US.TYAOFDILONG | Z9: OFDILONG | AB9: =RTD("cqg.rtd",,"StudyData",Y9, "Bar", "", "Close","W",$L$1,,,,,"T") -> 197188 | AC9: 0.05844307885 | AD9: US 10Y T-note Options and Futures Combined Dealer Intermediary Long, 5.8%
C10: OFAMILONG | E10: =I2 ->  | K10: X.US.TYAOFDISHT | L10: OFDISHT | N10: =RTD("cqg.rtd",,"StudyData",K10, "Bar", "", "Close","W",$I$1,,,,,"T") -> 281871 | O10: 0.08853986541 | P10: =VLOOKUP(K10,Symbols!$A$1:$B$3103,2,FALSE) -> US 10Y T-note Options and Futures Combined Dealer Intermediary Short | Q10: US 10Y T-note Options and Futures Combined Dealer Intermediary Short, 8.9% | Y10: X.US.TYAOFDISHT | Z10: OFDISHT | AB10: =RTD("cqg.rtd",,"StudyData",Y10, "Bar", "", "Close","W",$L$1,,,,,"T") -> 257725 | AC10: 0.07638518822 | AD10: US 10Y T-note Options and Futures Combined Dealer Intermediary Short, 7.6%
C11: OFAMISHT | K11: X.US.TYAOFDISPR | L11: OFDISPR | N11: =RTD("cqg.rtd",,"StudyData",K11, "Bar", "", "Close","W",$I$1,,,,,"T") -> 185621 | O11: 0.0583063116 | P11: =VLOOKUP(K11,Symbols!$A$1:$B$3103,2,FALSE) -> US 10Y T-note Options and Futures Combined Dealer Intermediary Spreading | Q11: US 10Y T-note Options and Futures Combined Dealer Intermediary Spreading, 5.8% | Y11: X.US.TYAOFDISPR | Z11: OFDISPR | AB11: =RTD("cqg.rtd",,"StudyData",Y11, "Bar", "", "Close","W",$L$1,,,,,"T") -> 125938 | AC11: 0.0373258234 | AD11: US 10Y T-note Options and Futures Combined Dealer Intermediary Spreading, 3.7%
C12: OFAMISPR | K12: X.US.TYAOFLFLONG | L12: OFLFLONG | N12: =RTD("cqg.rtd",,"StudyData",K12, "Bar", "", "Close","W",$I$1,,,,,"T") -> 360972 | O12: 0.1133866638 | P12: =VLOOKUP(K12,Symbols!$A$1:$B$3103,2,FALSE) -> US 10Y T-note Options and Futures Combined Leveraged Funds Long | Q12: US 10Y T-note Options and Futures Combined Leveraged Funds Long, 11.3% | Y12: X.US.TYAOFLFLONG | Z12: OFLFLONG | AB12: =RTD("cqg.rtd",,"StudyData",Y12, "Bar", "", "Close","W",$L$1,,,,,"T") -> 435387 | AC12: 0.1290411017 | AD12: US 10Y T-note Options and Futures Combined Leveraged Funds Long, 12.9%
C13: OFDILONG | K13: X.US.TYAOFLFSHT | L13: OFLFSHT | N13: =RTD("cqg.rtd",,"StudyData",K13, "Bar", "", "Close","W",$I$1,,,,,"T") -> 587928 | O13: 0.1846769125 | P13: =VLOOKUP(K13,Symbols!$A$1:$B$3103,2,FALSE) -> US 10Y T-note Options and Futures Combined Leveraged Funds Short | Q13: US 10Y T-note Options and Futures Combined Leveraged Funds Short, 18.5% | Y13: X.US.TYAOFLFSHT | Z13: OFLFSHT | AB13: =RTD("cqg.rtd",,"StudyData",Y13, "Bar", "", "Close","W",$L$1,,,,,"T") -> 717449 | AC13: 0.2126393517 | AD13: US 10Y T-note Options and Futures Combined Leveraged Funds Short, 21.3%
C14: OFDISHT | K14: X.US.TYAOFLFSPR | L14: OFLFSPR | N14: =RTD("cqg.rtd",,"StudyData",K14, "Bar", "", "Close","W",$I$1,,,,,"T") -> 449343 | O14: 0.1411453067 | P14: =VLOOKUP(K14,Symbols!$A$1:$B$3103,2,FALSE) -> US 10Y T-note Options and Futures Combined Leveraged Funds Spreading | Q14: US 10Y T-note Options and Futures Combined Leveraged Funds Spreading, 14.1% | Y14: X.US.TYAOFLFSPR | Z14: OFLFSPR | AB14: =RTD("cqg.rtd",,"StudyData",Y14, "Bar", "", "Close","W",$L$1,,,,,"T") -> 379001 | AC14: 0.1123292763 | AD14: US 10Y T-note Options and Futures Combined Leveraged Funds Spreading, 11.2%
C15: OFDISPR | K15: X.US.TYAOFNRLONG | L15: OFNRLONG | N15: =RTD("cqg.rtd",,"StudyData",K15, "Bar", "", "Close","W",$I$1,,,,,"T") -> 402535 | O15: 0.126442219 | P15: =VLOOKUP(K15,Symbols!$A$1:$B$3103,2,FALSE) -> US 10Y T-note Options and Futures Combined Nonreportable Long | Q15: US 10Y T-note Options and Futures Combined Nonreportable Long, 12.6% | Y15: X.US.TYAOFNRLONG | Z15: OFNRLONG | AB15: =RTD("cqg.rtd",,"StudyData",Y15, "Bar", "", "Close","W",$L$1,,,,,"T") -> 392927 | AC15: 0.1164566994 | AD15: US 10Y T-note Options and Futures Combined Nonreportable Long, 11.6%
C16: OFLFLONG | K16: X.US.TYAOFNRSHT | L16: OFNRSHT | N16: =RTD("cqg.rtd",,"StudyData",K16, "Bar", "", "Close","W",$I$1,,,,,"T") -> 379436 | O16: 0.1191864802 | P16: =VLOOKUP(K16,Symbols!$A$1:$B$3103,2,FALSE) -> US 10Y T-note Options and Futures Combined Nonreportable Short | Q16: US 10Y T-note Options and Futures Combined Nonreportable Short, 11.9% | Y16: X.US.TYAOFNRSHT | Z16: OFNRSHT | AB16: =RTD("cqg.rtd",,"StudyData",Y16, "Bar", "", "Close","W",$L$1,,,,,"T") -> 394714 | AC16: 0.116986335 | AD16: US 10Y T-note Options and Futures Combined Nonreportable Short, 11.7%
C17: OFLFSHT | K17: X.US.TYAOFORLONG | L17: OFORLONG | N17: =RTD("cqg.rtd",,"StudyData",K17, "Bar", "", "Close","W",$I$1,,,,,"T") -> 217449 | O17: 0.06830395888 | P17: =VLOOKUP(K17,Symbols!$A$1:$B$3103,2,FALSE) -> US 10Y T-note Options and Futures Combined Other Reportables Long | Q17: US 10Y T-note Options and Futures Combined Other Reportables Long, 6.8% | Y17: X.US.TYAOFORLONG | Z17: OFORLONG | AB17: =RTD("cqg.rtd",,"StudyData",Y17, "Bar", "", "Close","W",$L$1,,,,,"T") -> 237253 | AC17: 0.07031764502 | AD17: US 10Y T-note Options and Futures Combined Other Reportables Long, 7.0%
C18: OFLFSPR | K18: X.US.TYAOFORSHT | L18: OFORSHT | N18: =RTD("cqg.rtd",,"StudyData",K18, "Bar", "", "Close","W",$I$1,,,,,"T") -> 97190 | O18: 0.03052882176 | P18: =VLOOKUP(K18,Symbols!$A$1:$B$3103,2,FALSE) -> US 10Y T-note Options and Futures Combined Other Reportables Short | Q18: US 10Y T-note Options and Futures Combined Other Reportables Short, 3.1% | Y18: X.US.TYAOFORSHT | Z18: OFORSHT | AB18: =RTD("cqg.rtd",,"StudyData",Y18, "Bar", "", "Close","W",$L$1,,,,,"T") -> 86858 | AC18: 0.02574319402 | AD18: US 10Y T-note Options and Futures Combined Other Reportables Short, 2.6%
C19: OFNRLONG | K19: X.US.TYAOFORSPR | L19: OFORSPR | N19: =RTD("cqg.rtd",,"StudyData",K19, "Bar", "", "Close","W",$I$1,,,,,"T") -> 50894 | O19: 0.01598656091 | P19: =VLOOKUP(K19,Symbols!$A$1:$B$3103,2,FALSE) -> US 10Y T-note Options and Futures Combined Other Reportables Spreading | Q19: =P19&", "&TEXT(O19,".0%") -> US 10Y T-note Options and Futures Combined Other Reportables Spreading, 1.6% | Y19: ="X.US."&$C$1&Z19 -> X.US.TYAOFORSPR | Z19: OFORSPR
C20: OFNRSHT | N20: =N10-N9 -> 98906 | P20: ="Traders in Financial Futures COT as a Percentage of Total Open Interest, Weeks: "&TEXT(Q21,"MM/DD/YY")&" vs. "&TEXT(R21,"MM/DD/YY") -> Traders in Financial Futures COT as a Percentage of Total Open Interest, Weeks: 10/20/20 vs. 09/01/20
C21: OFORLONG | Q21: =J1 -> 2020-10-20 | R21: =N1 -> 2020-09-01 | AC21: =IFERROR(N6/$K$2,"NA") -> 0.4333113767 | AD21: =P6&", "&TEXT(AC21,".00%")&" "&AE21&" "&TEXT(AF21,".00%") -> US 10Y T-note Options and Futures Combined Asset Manager/Institutional Long, 43.33% ∆ 3.68% | AE21: ∆ | AF21: =IFERROR(O6-AC6,"NA") -> 0.03681853049
C22: OFORSHT | AC22: =IFERROR(N7/$K$2,"NA") -> 0.3759844752 | AD22: =P7&", "&TEXT(AC22,".00%")&" "&AE22&" "&TEXT(AF22,".00%") -> US 10Y T-note Options and Futures Combined Asset Manager/Institutional Short, 37.60% ∆ 3.70% | AE22: ∆ | AF22: =IFERROR(O7-AC7,"NA") -> 0.03698687648
C23: OFORSPR | AC23: 0.2169399623 | AD23: US 10Y T-note Options and Futures Combined Asset Manager/Institutional Spreading, 21.69% ∆ 1.91% | AE23: ∆ | AF23: 0.01909395198
AC24: 0.05747202258 | AD24: US 10Y T-note Options and Futures Combined Dealer Intermediary Long, 5.75% ∆ -.10% | AE24: ∆ | AF24: -0.0009710562694
AC25: 0.08853986541 | AD25: US 10Y T-note Options and Futures Combined Dealer Intermediary Short, 8.85% ∆ 1.22% | AE25: ∆ | AF25: 0.01215467719
AC26: 0.0583063116 | AD26: US 10Y T-note Options and Futures Combined Dealer Intermediary Spreading, 5.83% ∆ 2.10% | AE26: ∆ | AF26: 0.02098048821
AC27: 0.1133866638 | AD27: US 10Y T-note Options and Futures Combined Leveraged Funds Long, 11.34% ∆ -1.57% | AE27: ∆ | AF27: -0.01565443799
AC28: 0.1846769125 | AD28: US 10Y T-note Options and Futures Combined Leveraged Funds Short, 18.47% ∆ -2.80% | AE28: ∆ | AF28: -0.02796243919
AC29: 0.1411453067 | AD29: US 10Y T-note Options and Futures Combined Leveraged Funds Spreading, 14.11% ∆ 2.88% | AE29: ∆ | AF29: 0.02881603045
AC30: 0.126442219 | AD30: US 10Y T-note Options and Futures Combined Nonreportable Long, 12.64% ∆ 1.00% | AE30: ∆ | AF30: 0.009985519644
AC31: 0.1191864802 | AD31: US 10Y T-note Options and Futures Combined Nonreportable Short, 11.92% ∆ .22% | AE31: ∆ | AF31: 0.002200145259
AC32: 0.06830395888 | AD32: US 10Y T-note Options and Futures Combined Other Reportables Long, 6.83% ∆ -.20% | AE32: ∆ | AF32: -0.002013686132
AC33: 0.03052882176 | AD33: US 10Y T-note Options and Futures Combined Other Reportables Short, 3.05% ∆ .48% | AE33: ∆ | AF33: 0.004785627745
N59: X.US.ZSEOFPMPUDIFF | O59: Soybeans Options and Futures Combined Producer/Merchant/Processor/User Long/Short Diff | AD59: Soybeans Options and Futures Combined
AD60: Producer/Merchant/Processor/User Long/Short Diff
O61: =RTD("cqg.rtd",,"StudyData",N59, "Bar", "", "Close","W",-1,,,,,"T") -> -373040 | P61: =RTD("cqg.rtd",,"StudyData",N59, "Bar", "", "Close","W",-4,,,,,"T") -> -351874 | Q61: =O61-P61 -> -21166 | Z61: =LEN(O59) -> 86

Sheet Sheet2 (2) (hidden)
N1: Vlookup | O1: Symbol | P1: Volume | Q1: rank1 | R1: rank2
N2: =R2 -> 6 | O2: A | P2: 100 | Q2: =RANK($P2,$P$2:P$7) -> 6 | R2: =RANK($P2,$P$2:P$7)+COUNTIF($P$2:P2,P2)-1 -> 6 | S2: =RANK($P2,$P$2:P$7)+COUNTIF($P$2:P2,P2)-1 -> 6
N3: =R3 -> 3 | O3: B | P3: 103 | Q3: =RANK($P3,$P$2:P$7) -> 3 | R3: =RANK($P3,$P$2:P$7)+COUNTIF($P$2:P3,P3)-1 -> 3 | S3: =RANK($P3,$P$2:P$7)+COUNTIF($P$2:P3,P3)-1 -> 3
N4: 5 | O4: C | P4: 102 | Q4: =RANK($P4,$P$2:P$7) -> 5 | R4: =RANK($P4,$P$2:P$7)+COUNTIF($P$2:P4,P4)-1 -> 5 | S4: =RANK($P4,$P$2:P$7)+COUNTIF($P$2:P4,P4)-1 -> 5
N5: 4 | O5: D | P5: 103 | Q5: =RANK($P5,$P$2:P$7) -> 3 | R5: =RANK($P5,$P$2:P$7)+COUNTIF($P$2:P5,P5)-1 -> 4 | S5: =RANK($P5,$P$2:P$7)+COUNTIF($P$2:P5,P5)-1 -> 4
N6: =R6 -> 2 | O6: E | P6: 104 | Q6: =RANK($P6,$P$2:P$7) -> 2 | R6: =RANK($P6,$P$2:P$7)+COUNTIF($P$2:P6,P6)-1 -> 2 | S6: =RANK($P6,$P$2:P$7)+COUNTIF($P$2:P6,P6)-1 -> 2
N7: 1 | O7: F | P7: 105 | Q7: =RANK($P7,$P$2:P$7) -> 1 | R7: =RANK($P7,$P$2:P$7)+COUNTIF($P$2:P7,P7)-1 -> 1 | S7: =RANK($P7,$P$2:P$7)+COUNTIF($P$2:P7,P7)-1 -> 1
A8: =RANK($C8,$C$8:C$12)+COUNTIF($C$8:C8,C8)-1 -> 1 | B8: ="X.US."&'Sheet1 (2)'!$C$1&"AMIDIFF" -> X.US.TYAAMIDIFF | C8: =RTD("cqg.rtd",,"StudyData",B8, "Bar", "", "Close","W",-1,,,,,"T") -> 201851 | D8: =VLOOKUP(B8,Symbols!$A$1:$B$3103,2,FALSE) -> US 10Y T-note Asset Manager/Institutional Long/Short Diff | N8: =VLOOKUP(O8,$A$8:$D$12,2,FALSE) -> X.US.TYAAMIDIFF | O8: 1 | P8: =VLOOKUP(O8,$A$8:$D$12,3,FALSE) -> 201851 | Q8: =VLOOKUP(O8,$A$8:$D$12,4,FALSE) -> US 10Y T-note Asset Manager/Institutional Long/Short Diff
A9: =RANK($C9,$C$8:C$12)+COUNTIF($C$8:C9,C9)-1 -> 4 | B9: ="X.US."&'Sheet1 (2)'!$C$1&"DIDIFF" -> X.US.TYADIDIFF | C9: =RTD("cqg.rtd",,"StudyData",B9, "Bar", "", "Close","W",-1,,,,,"T") -> -81502 | D9: =VLOOKUP(B9,Symbols!$A$1:$B$3103,2,FALSE) -> US 10Y T-note Dealer Intermediary Long/Short Diff | N9: =VLOOKUP(O9,$A$8:$D$12,2,FALSE) -> X.US.TYAORDIFF | O9: 2 | P9: =VLOOKUP(O9,$A$8:$D$12,3,FALSE) -> 129951 | Q9: =VLOOKUP(O9,$A$8:$D$12,4,FALSE) -> US 10Y T-note Other Reportables Long/Short Diff
A10: =RANK($C10,$C$8:C$12)+COUNTIF($C$8:C10,C10)-1 -> 5 | B10: ="X.US."&'Sheet1 (2)'!$C$1&"LFDIFF" -> X.US.TYALFDIFF | C10: =RTD("cqg.rtd",,"StudyData",B10, "Bar", "", "Close","W",-1,,,,,"T") -> -280310 | D10: =VLOOKUP(B10,Symbols!$A$1:$B$3103,2,FALSE) -> US 10Y T-note Leveraged Funds Long/Short Diff | N10: X.US.TYADNRDIFF | O10: 3 | P10: 30010 | Q10: US 10Y T-note Nonreportable Long/Short Diff
A11: =RANK($C11,$C$8:C$12)+COUNTIF($C$8:C11,C11)-1 -> 3 | B11: ="X.US."&'Sheet1 (2)'!$C$1&"DNRDIFF" -> X.US.TYADNRDIFF | C11: =RTD("cqg.rtd",,"StudyData",B11, "Bar", "", "Close","W",-1,,,,,"T") -> 30010 | D11: =VLOOKUP(B11,Symbols!$A$1:$B$3103,2,FALSE) -> US 10Y T-note Nonreportable Long/Short Diff | N11: X.US.TYADIDIFF | O11: 4 | P11: -81502 | Q11: US 10Y T-note Dealer Intermediary Long/Short Diff
A12: =RANK($C12,$C$8:C$12)+COUNTIF($C$8:C12,C12)-1 -> 2 | B12: ="X.US."&'Sheet1 (2)'!$C$1&"ORDIFF" -> X.US.TYAORDIFF | C12: =RTD("cqg.rtd",,"StudyData",B12, "Bar", "", "Close","W",-1,,,,,"T") -> 129951 | D12: =VLOOKUP(B12,Symbols!$A$1:$B$3103,2,FALSE) -> US 10Y T-note Other Reportables Long/Short Diff | N12: X.US.TYALFDIFF | O12: 5 | P12: -280310 | Q12: US 10Y T-note Leveraged Funds Long/Short Diff
C14: ='Sheet1 (2)'!K2 -> 3183549 | G14: AMIDIFF
G15: DIDIFF | L15: ='Sheet1 (2)'!L1 -> -8 | N15: =RTD("cqg.rtd",,"StudyData",N8, "Bar", "", "Close","W",$L$15,,,,,"T") -> 215966
C16: =ABS(C8/$C$14) -> 0.06340439553 | G16: LFDIFF | N16: =RTD("cqg.rtd",,"StudyData",N9, "Bar", "", "Close","W",$L$15,,,,,"T") -> 134418
C17: =ABS(C9/$C$14) -> 0.02560098808 | G17: DNRDIFF | N17: =RTD("cqg.rtd",,"StudyData",N10, "Bar", "", "Close","W",$L$15,,,,,"T") -> 3397
C18: 0.08804953214 | G18: ORDIFF | N18: =RTD("cqg.rtd",,"StudyData",N11, "Bar", "", "Close","W",$L$15,,,,,"T") -> -45735
C19: 0.009426586492 | N19: =RTD("cqg.rtd",,"StudyData",N12, "Bar", "", "Close","W",$L$15,,,,,"T") -> -308046
C20: 0.04081953819
N21: ='Sheet1 (2)'!O2 -> 3374018
H22: X.US.EPAMIDIFF | J22: X.US.EPAMIDIFF
H23: X.US.EPDNRDIFF | N23: =ABS(N15/$N$21) -> 0.06400855004
H24: X.US.EPLFDIFF | N24: =ABS(N16/$N$21) -> 0.03983914727
H25: X.US.EPDIDIFF | N25: 0.001006811463
H26: X.US.EPORDIFF | N26: 0.01355505513
N27: 0.09129945365

Sheet Sheet1 (3) (hidden)
B1: Symbol | C1: =DisaggregatedNoNum!D44 -> ZSE | D1: =RTD("cqg.rtd", ,"ContractData",C1, "LongDescription",, "T") -> Soybeans (Globex), Jan 21 | H1: Week | I1: =IF(I2="",-1,0) -> -1 | J1: =IF(LEFT(RTD("cqg.rtd",,"StudyData",K6, "Bar", "", "Time","W",I1,,,,,"T"),3)="777","",RTD("cqg.rtd",,"StudyData",K6, "Bar", "", "Time","W",I1,,,,,"T")+1) -> 2020-10-20 | K1: Week | L1: =DisaggregatedNoNum!L44 -> -10 | N1: =IF(LEFT( RTD("cqg.rtd",,"StudyData",K6, "Bar", "", "Time","W",L1,,,,,"T"),3)="777","",RTD("cqg.rtd",,"StudyData",K6, "Bar", "", "Time","W",L1,,,,,"T")+1) -> 2020-08-18
I2: =RTD("cqg.rtd",,"StudyData",K6, "Bar", "", "Close","W",0,,,,,"T") ->  | J2: =J1+1 -> 2020-10-21 | K2: =RTD("cqg.rtd",,"StudyData", "OI("&C1&",OIType:=CommodityOi) when (LocalMonth("&$C$1&")="&MONTH(J2)&" and LocalDay("&$C$1&")="&DAY(J2)&" and LocalYear("&$C$1&")="&YEAR(J2)&")", "Bar", "", "Close", "D", "0", "all", "", "","FALSE","T") -> 1049850 | N2: =N1+1 -> 2020-08-19 | O2: =IF(P2="",RTD("cqg.rtd",,"StudyData","OI("&C1&",OIType:=CommodityOi) when (LocalMonth("&$C$1&")="&MONTH(N2)&" and LocalDay("&$C$1&")="&DAY(N2)+1&" and LocalYear("&$C$1&")="&YEAR(N2)&")","Bar","","Close","ADC","0","all","","","FALSE","T"),RTD("cqg.rtd",,"StudyData","OI("&C1&",OIType:=CommodityOi) when (LocalMonth("&$C$1&")="&MONTH(N2)&" and LocalDay("&$C$1&")="&DAY(N2)&" and LocalYear("&$C$1&")="&YEAR(N2)&")","Bar","","Close","ADC","0","all","","","FALSE","T")) -> 844099 | P2: =RTD("cqg.rtd",,"StudyData", "OI("&C1&",OIType:=CommodityOi) when (LocalMonth("&$C$1&")="&MONTH(N2)&" and LocalDay("&$C$1&")="&DAY(N1)+1&" and LocalYear("&$C$1&")="&YEAR(N2)&")", "Bar", "", "Close", "ADC", "0", "all", "", "","FALSE","T") -> 844099
B3: =IF(LEFT(I2,3)="777",1,0) -> 0 | J3: =J1 -> 2020-10-20 | K3: =RTD("cqg.rtd",,"StudyData", "PriceToDollar("&C1&",InputChoice=Close) when (LocalMonth("&$C$1&")="&MONTH(J3)&" and LocalDay("&$C$1&")="&DAY(J3)&" and LocalYear("&$C$1&")="&YEAR(J3)&")", "Bar", "", "Close", "D", "0", "all", "", "","FALSE","T") -> 53187.5 | N3: =N1 -> 2020-08-18 | O3: =RTD("cqg.rtd",,"StudyData", "PriceToDollar("&C1&",InputChoice=Close) when (LocalMonth("&$C$1&")="&MONTH(N3)&" and LocalDay("&$C$1&")="&DAY(N3)&" and LocalYear("&$C$1&")="&YEAR(N3)&")", "Bar", "", "Close", "ADC", "0", "all", "", "","FALSE","T") -> 45687.5 | S3: , &TEXT(AC6,".0%")
B5: Agriculture, Petroleum and Products, Natural Gas and Products, Electricity or Metals
H6: =K3*N6 -> 3237044438 | K6: ="X.US."&$C$1&L6 -> X.US.ZSEOFSDSPR | L6: OFSDSPR | N6: =RTD("cqg.rtd",,"StudyData",K6, "Bar", "", "Close","W",$I$1,,,,,"T") -> 60861 | O6: =N6/$K$2 -> 0.05797113873 | P6: =VLOOKUP(K6,Symbols!$A$1:$B$3103,2,FALSE) -> Soybeans Options and Futures Combined Swap Dealers Spreading | Q6: =P6&", "&TEXT(O6,".0%") -> Soybeans Options and Futures Combined Swap Dealers Spreading, 5.8% | Y6: ="X.US."&$C$1&Z6 -> X.US.ZSEOFSDSPR | Z6: OFSDSPR | AB6: =RTD("cqg.rtd",,"StudyData",Y6, "Bar", "", "Close","W",$L$1,,,,,"T") -> 27698 | AC6: =AB6/$O$2 -> 0.03281368655 | AD6: =P6&", "&TEXT(AC6,".0%") -> Soybeans Options and Futures Combined Swap Dealers Spreading, 3.3%
B7: Incorrect Symbol. Please enter an Agriculture, Petroleum and Products, Natural Gas and Products, or Metals symbol. | K7: ="X.US."&$C$1&L7 -> X.US.ZSEOFSDSHT | L7: OFSDSHT | N7: =RTD("cqg.rtd",,"StudyData",K7, "Bar", "", "Close","W",$I$1,,,,,"T") -> 40273 | O7: =N7/$K$2 -> 0.0383607182 | P7: =VLOOKUP(K7,Symbols!$A$1:$B$3103,2,FALSE) -> Soybeans Options and Futures Combined Swap Dealers Short | Q7: =P7&", "&TEXT(O7,".0%") -> Soybeans Options and Futures Combined Swap Dealers Short, 3.8% | Y7: ="X.US."&$C$1&Z7 -> X.US.ZSEOFSDSHT | Z7: OFSDSHT | AB7: =RTD("cqg.rtd",,"StudyData",Y7, "Bar", "", "Close","W",$L$1,,,,,"T") -> 19129 | AC7: =AB7/$O$2 -> 0.02266203372 | AD7: =P7&", "&TEXT(AC7,".0%") -> Soybeans Options and Futures Combined Swap Dealers Short, 2.3%
K8: X.US.ZSEOFSDLONG | L8: OFSDLONG | N8: =RTD("cqg.rtd",,"StudyData",K8, "Bar", "", "Close","W",$I$1,,,,,"T") -> 162576 | O8: 0.1548564081 | P8: =VLOOKUP(K8,Symbols!$A$1:$B$3103,2,FALSE) -> Soybeans Options and Futures Combined Swap Dealers Long | Q8: Soybeans Options and Futures Combined Swap Dealers Long, 15.5% | Y8: X.US.ZSEOFSDLONG | Z8: OFSDLONG | AB8: =RTD("cqg.rtd",,"StudyData",Y8, "Bar", "", "Close","W",$L$1,,,,,"T") -> 153028 | AC8: 0.181291531 | AD8: Soybeans Options and Futures Combined Swap Dealers Long, 18.1%
K9: X.US.ZSEOFPMPUSHT | L9: OFPMPUSHT | N9: =RTD("cqg.rtd",,"StudyData",K9, "Bar", "", "Close","W",$I$1,,,,,"T") -> 728305 | O9: 0.6937229128 | P9: =VLOOKUP(K9,Symbols!$A$1:$B$3103,2,FALSE) -> Soybeans Options and Futures Combined Producer/Merchant/Processor/User Short | Q9: Soybeans Options and Futures Combined Producer/Merchant/Processor/User Short, 69.4% | Y9: X.US.ZSEOFPMPUSHT | Z9: OFPMPUSHT | AB9: =RTD("cqg.rtd",,"StudyData",Y9, "Bar", "", "Close","W",$L$1,,,,,"T") -> 537241 | AC9: 0.6364668125 | AD9: Soybeans Options and Futures Combined Producer/Merchant/Processor/User Short, 63.6%
K10: X.US.ZSEOFPMPULONG | L10: OFPMPULONG | N10: =RTD("cqg.rtd",,"StudyData",K10, "Bar", "", "Close","W",$I$1,,,,,"T") -> 355265 | O10: 0.3383959613 | P10: =VLOOKUP(K10,Symbols!$A$1:$B$3103,2,FALSE) -> Soybeans Options and Futures Combined Producer/Merchant/Processor/User Long | Q10: Soybeans Options and Futures Combined Producer/Merchant/Processor/User Long, 33.8% | Y10: X.US.ZSEOFPMPULONG | Z10: OFPMPULONG | AB10: =RTD("cqg.rtd",,"StudyData",Y10, "Bar", "", "Close","W",$L$1,,,,,"T") -> 279321 | AC10: 0.3309102368 | AD10: Soybeans Options and Futures Combined Producer/Merchant/Processor/User Long, 33.1%
K11: X.US.ZSEOFORSPR | L11: OFORSPR | N11: =RTD("cqg.rtd",,"StudyData",K11, "Bar", "", "Close","W",$I$1,,,,,"T") -> 245410 | O11: 0.2337572034 | P11: =VLOOKUP(K11,Symbols!$A$1:$B$3103,2,FALSE) -> Soybeans Options and Futures Combined Other Reportables Spreading | Q11: Soybeans Options and Futures Combined Other Reportables Spreading, 23.4% | Y11: X.US.ZSEOFORSPR | Z11: OFORSPR | AB11: =RTD("cqg.rtd",,"StudyData",Y11, "Bar", "", "Close","W",$L$1,,,,,"T") -> 145674 | AC11: 0.1725792828 | AD11: Soybeans Options and Futures Combined Other Reportables Spreading, 17.3%
K12: X.US.ZSEOFORSHT | L12: OFORSHT | N12: =RTD("cqg.rtd",,"StudyData",K12, "Bar", "", "Close","W",$I$1,,,,,"T") -> 40451 | O12: 0.03853026623 | P12: =VLOOKUP(K12,Symbols!$A$1:$B$3103,2,FALSE) -> Soybeans Options and Futures Combined Other Reportables Short | Q12: Soybeans Options and Futures Combined Other Reportables Short, 3.9% | Y12: X.US.ZSEOFORSHT | Z12: OFORSHT | AB12: =RTD("cqg.rtd",,"StudyData",Y12, "Bar", "", "Close","W",$L$1,,,,,"T") -> 35601 | AC12: 0.0421763324 | AD12: Soybeans Options and Futures Combined Other Reportables Short, 4.2%
K13: X.US.ZSEOFORLONG | L13: OFORLONG | N13: =RTD("cqg.rtd",,"StudyData",K13, "Bar", "", "Close","W",$I$1,,,,,"T") -> 67656 | O13: 0.06444349193 | P13: =VLOOKUP(K13,Symbols!$A$1:$B$3103,2,FALSE) -> Soybeans Options and Futures Combined Other Reportables Long | Q13: Soybeans Options and Futures Combined Other Reportables Long, 6.4% | Y13: X.US.ZSEOFORLONG | Z13: OFORLONG | AB13: =RTD("cqg.rtd",,"StudyData",Y13, "Bar", "", "Close","W",$L$1,,,,,"T") -> 57753 | AC13: 0.06841969959 | AD13: Soybeans Options and Futures Combined Other Reportables Long, 6.8%
K14: X.US.ZSEOFNRSHT | L14: OFNRSHT | N14: =RTD("cqg.rtd",,"StudyData",K14, "Bar", "", "Close","W",$I$1,,,,,"T") -> 88105 | O14: 0.0839215126 | P14: =VLOOKUP(K14,Symbols!$A$1:$B$3103,2,FALSE) -> Soybeans Options and Futures Combined Nonreportable Short | Q14: Soybeans Options and Futures Combined Nonreportable Short, 8.4% | Y14: X.US.ZSEOFNRSHT | Z14: OFNRSHT | AB14: =RTD("cqg.rtd",,"StudyData",Y14, "Bar", "", "Close","W",$L$1,,,,,"T") -> 70341 | AC14: 0.08333264226 | AD14: Soybeans Options and Futures Combined Nonreportable Short, 8.3%
K15: X.US.ZSEOFNRLONG | L15: OFNRLONG | N15: =RTD("cqg.rtd",,"StudyData",K15, "Bar", "", "Close","W",$I$1,,,,,"T") -> 79746 | O15: 0.07595942277 | P15: =VLOOKUP(K15,Symbols!$A$1:$B$3103,2,FALSE) -> Soybeans Options and Futures Combined Nonreportable Long | Q15: Soybeans Options and Futures Combined Nonreportable Long, 7.6% | Y15: X.US.ZSEOFNRLONG | Z15: OFNRLONG | AB15: =RTD("cqg.rtd",,"StudyData",Y15, "Bar", "", "Close","W",$L$1,,,,,"T") -> 65152 | AC15: 0.07718525908 | AD15: Soybeans Options and Futures Combined Nonreportable Long, 7.7%
K16: X.US.ZSEOFMMSPR | L16: OFMMSPR | N16: =RTD("cqg.rtd",,"StudyData",K16, "Bar", "", "Close","W",$I$1,,,,,"T") -> 119450 | O16: 0.1137781588 | P16: =VLOOKUP(K16,Symbols!$A$1:$B$3103,2,FALSE) -> Soybeans Options and Futures Combined Managed Money Spreading | Q16: Soybeans Options and Futures Combined Managed Money Spreading, 11.4% | Y16: X.US.ZSEOFMMSPR | Z16: OFMMSPR | AB16: =RTD("cqg.rtd",,"StudyData",Y16, "Bar", "", "Close","W",$L$1,,,,,"T") -> 121360 | AC16: 0.1437746046 | AD16: Soybeans Options and Futures Combined Managed Money Spreading, 14.4%
K17: X.US.ZSEOFMMSHT | L17: OFMMSHT | N17: =RTD("cqg.rtd",,"StudyData",K17, "Bar", "", "Close","W",$I$1,,,,,"T") -> 3509 | O17: 0.003342382245 | P17: =VLOOKUP(K17,Symbols!$A$1:$B$3103,2,FALSE) -> Soybeans Options and Futures Combined Managed Money Short | Q17: Soybeans Options and Futures Combined Managed Money Short, .3% | Y17: X.US.ZSEOFMMSHT | Z17: OFMMSHT | AB17: =RTD("cqg.rtd",,"StudyData",Y17, "Bar", "", "Close","W",$L$1,,,,,"T") -> 26393 | AC17: 0.03126765936 | AD17: Soybeans Options and Futures Combined Managed Money Short, 3.1%
K18: X.US.ZSEOFMMLONG | L18: OFMMLONG | N18: =RTD("cqg.rtd",,"StudyData",K18, "Bar", "", "Close","W",$I$1,,,,,"T") -> 235401 | O18: 0.2242234605 | P18: =VLOOKUP(K18,Symbols!$A$1:$B$3103,2,FALSE) -> Soybeans Options and Futures Combined Managed Money Long | Q18: Soybeans Options and Futures Combined Managed Money Long, 22.4% | Y18: X.US.ZSEOFMMLONG | Z18: OFMMLONG | AB18: =RTD("cqg.rtd",,"StudyData",Y18, "Bar", "", "Close","W",$L$1,,,,,"T") -> 133451 | AC18: 0.1580987538 | AD18: Soybeans Options and Futures Combined Managed Money Long, 15.8%
N20: =N10-N9 -> -373040 | P20: ="Disaggregated Notional COT, Weeks: "&TEXT(Q21,"MM/DD/YY")&" vs. "&TEXT(R21,"MM/DD/YY") -> Disaggregated Notional COT, Weeks: 10/20/20 vs. 08/18/20
Q21: =J1 -> 2020-10-20 | R21: =N1 -> 2020-08-18 | AC21: =IFERROR(N6/$K$2,"NA") -> 0.05797113873 | AD21: =P6&", "&TEXT(AC21,".00%")&" "&AE21&" "&TEXT(AF21,".00%") -> Soybeans Options and Futures Combined Swap Dealers Spreading, 5.80% ∆ 2.52% | AE21: ∆ | AF21: =IFERROR(O6-AC6,"NA") -> 0.02515745219
AC22: =IFERROR(N7/$K$2,"NA") -> 0.0383607182 | AD22: =P7&", "&TEXT(AC22,".00%")&" "&AE22&" "&TEXT(AF22,".00%") -> Soybeans Options and Futures Combined Swap Dealers Short, 3.84% ∆ 1.57% | AE22: ∆ | AF22: =IFERROR(O7-AC7,"NA") -> 0.01569868448
AC23: 0.1548564081 | AD23: Soybeans Options and Futures Combined Swap Dealers Long, 15.49% ∆ -2.64% | AE23: ∆ | AF23: -0.02643512291
AC24: 0.6937229128 | AD24: Soybeans Options and Futures Combined Producer/Merchant/Processor/User Short, 69.37% ∆ 5.73% | AE24: ∆ | AF24: 0.05725610025
B25: =K6 -> X.US.ZSEOFSDSPR | D25: =RTD("cqg.rtd",,"StudyData",K6, "Bar", "", "Close","W",$I$1,,,,,"T") -> 60861 | F25: =D25*$K$3 -> 3237044438 | G25: =P6 -> Soybeans Options and Futures Combined Swap Dealers Spreading | N25: =Y6 -> X.US.ZSEOFSDSPR | O25: =RTD("cqg.rtd",,"StudyData",Y6, "Bar", "", "Close","W",$L$1,,,,,"T") -> 27698 | P25: =$O$3*O25 -> 1265452375 | Q25: =F25 -> 3237044438 | R25: =G25&" "&TEXT(Q25,"$#,###")&" "&X25&" "&TEXT(Y25,"$#,###") -> Soybeans Options and Futures Combined Swap Dealers Spreading $3,237,044,438 ∆ $1,971,592,063 | X25: ∆ | Y25: =Q25-P25 -> 1971592062 | AC25: 0.3383959613 | AD25: Soybeans Options and Futures Combined Producer/Merchant/Processor/User Long, 33.84% ∆ .75% | AE25: ∆ | AF25: 0.007485724495
B26: =K7 -> X.US.ZSEOFSDSHT | D26: =RTD("cqg.rtd",,"StudyData",K7, "Bar", "", "Close","W",$I$1,,,,,"T") -> 40273 | F26: =D26*$K$3 -> 2142020188 | G26: =P7 -> Soybeans Options and Futures Combined Swap Dealers Short | N26: =Y7 -> X.US.ZSEOFSDSHT | O26: =RTD("cqg.rtd",,"StudyData",Y7, "Bar", "", "Close","W",$L$1,,,,,"T") -> 19129 | P26: =$O$3*O26 -> 873956187.5 | Q26: =F26 -> 2142020188 | R26: =G26&" "&TEXT(Q26,"$#,###")&" "&X26&" "&TEXT(Y26,"$#,###") -> Soybeans Options and Futures Combined Swap Dealers Short $2,142,020,188 ∆ $1,268,064,000 | X26: ∆ | Y26: =Q26-P26 -> 1268064000 | AC26: 0.2337572034 | AD26: Soybeans Options and Futures Combined Other Reportables Spreading, 23.38% ∆ 6.12% | AE26: ∆ | AF26: 0.06117792065
B27: X.US.ZSEOFSDLONG | D27: =RTD("cqg.rtd",,"StudyData",K8, "Bar", "", "Close","W",$I$1,,,,,"T") -> 162576 | F27: 8647011000 | G27: Soybeans Options and Futures Combined Swap Dealers Long | N27: X.US.ZSEOFSDLONG | O27: =RTD("cqg.rtd",,"StudyData",Y8, "Bar", "", "Close","W",$L$1,,,,,"T") -> 153028 | P27: 6991466750 | Q27: 8647011000 | R27: Soybeans Options and Futures Combined Swap Dealers Long $8,647,011,000 ∆ $1,655,544,250 | X27: ∆ | Y27: 1655544250 | AC27: 0.03853026623 | AD27: Soybeans Options and Futures Combined Other Reportables Short, 3.85% ∆ -.36% | AE27: ∆ | AF27: -0.003646066169
B28: X.US.ZSEOFPMPUSHT | D28: =RTD("cqg.rtd",,"StudyData",K9, "Bar", "", "Close","W",$I$1,,,,,"T") -> 728305 | F28: 3.873672219e+10 | G28: Soybeans Options and Futures Combined Producer/Merchant/Processor/User Short | N28: X.US.ZSEOFPMPUSHT | O28: =RTD("cqg.rtd",,"StudyData",Y9, "Bar", "", "Close","W",$L$1,,,,,"T") -> 537241 | P28: 2.454519819e+10 | Q28: 3.873672219e+10 | R28: Soybeans Options and Futures Combined Producer/Merchant/Processor/User Short $38,736,722,188 ∆ $14,191,524,000 | X28: ∆ | Y28: 14191524000 | AC28: 0.06444349193 | AD28: Soybeans Options and Futures Combined Other Reportables Long, 6.44% ∆ -.40% | AE28: ∆ | AF28: -0.003976207658
B29: X.US.ZSEOFPMPULONG | D29: =RTD("cqg.rtd",,"StudyData",K10, "Bar", "", "Close","W",$I$1,,,,,"T") -> 355265 | F29: 1.889565719e+10 | G29: Soybeans Options and Futures Combined Producer/Merchant/Processor/User Long | N29: X.US.ZSEOFPMPULONG | O29: =RTD("cqg.rtd",,"StudyData",Y10, "Bar", "", "Close","W",$L$1,,,,,"T") -> 279321 | P29: 1.276147819e+10 | Q29: 1.889565719e+10 | R29: Soybeans Options and Futures Combined Producer/Merchant/Processor/User Long $18,895,657,188 ∆ $6,134,179,000 | X29: ∆ | Y29: 6134179000 | AC29: 0.0839215126 | AD29: Soybeans Options and Futures Combined Nonreportable Short, 8.39% ∆ .06% | AE29: ∆ | AF29: 0.0005888703359
B30: X.US.ZSEOFORSPR | D30: =RTD("cqg.rtd",,"StudyData",K11, "Bar", "", "Close","W",$I$1,,,,,"T") -> 245410 | F30: 13052744375 | G30: Soybeans Options and Futures Combined Other Reportables Spreading | N30: X.US.ZSEOFORSPR | O30: =RTD("cqg.rtd",,"StudyData",Y11, "Bar", "", "Close","W",$L$1,,,,,"T") -> 145674 | P30: 6655480875 | Q30: 13052744375 | R30: Soybeans Options and Futures Combined Other Reportables Spreading $13,052,744,375 ∆ $6,397,263,500 | X30: ∆ | Y30: 6397263500 | AC30: 0.07595942277 | AD30: Soybeans Options and Futures Combined Nonreportable Long, 7.60% ∆ -.12% | AE30: ∆ | AF30: -0.0012258363
B31: X.US.ZSEOFORSHT | D31: =RTD("cqg.rtd",,"StudyData",K12, "Bar", "", "Close","W",$I$1,,,,,"T") -> 40451 | F31: 2151487562 | G31: Soybeans Options and Futures Combined Other Reportables Short | N31: X.US.ZSEOFORSHT | O31: =RTD("cqg.rtd",,"StudyData",Y12, "Bar", "", "Close","W",$L$1,,,,,"T") -> 35601 | P31: 1626520688 | Q31: 2151487562 | R31: Soybeans Options and Futures Combined Other Reportables Short $2,151,487,563 ∆ $524,966,875 | X31: ∆ | Y31: 524966875 | AC31: 0.1137781588 | AD31: Soybeans Options and Futures Combined Managed Money Spreading, 11.38% ∆ -3.00% | AE31: ∆ | AF31: -0.02999644585
B32: X.US.ZSEOFORLONG | D32: =RTD("cqg.rtd",,"StudyData",K13, "Bar", "", "Close","W",$I$1,,,,,"T") -> 67656 | F32: 3598453500 | G32: Soybeans Options and Futures Combined Other Reportables Long | N32: X.US.ZSEOFORLONG | O32: =RTD("cqg.rtd",,"StudyData",Y13, "Bar", "", "Close","W",$L$1,,,,,"T") -> 57753 | P32: 2638590188 | Q32: 3598453500 | R32: Soybeans Options and Futures Combined Other Reportables Long $3,598,453,500 ∆ $959,863,313 | X32: ∆ | Y32: 959863312.5 | AC32: 0.003342382245 | AD32: Soybeans Options and Futures Combined Managed Money Short, .33% ∆ -2.79% | AE32: ∆ | AF32: -0.02792527712
B33: X.US.ZSEOFNRSHT | D33: =RTD("cqg.rtd",,"StudyData",K14, "Bar", "", "Close","W",$I$1,,,,,"T") -> 88105 | F33: 4686084688 | G33: Soybeans Options and Futures Combined Nonreportable Short | N33: X.US.ZSEOFNRSHT | O33: =RTD("cqg.rtd",,"StudyData",Y14, "Bar", "", "Close","W",$L$1,,,,,"T") -> 70341 | P33: 3213704438 | Q33: 4686084688 | R33: Soybeans Options and Futures Combined Nonreportable Short $4,686,084,688 ∆ $1,472,380,250 | X33: ∆ | Y33: 1472380250 | AC33: 0.2242234605 | AD33: Soybeans Options and Futures Combined Managed Money Long, 22.42% ∆ 6.61% | AE33: ∆ | AF33: 0.06612470668
B34: X.US.ZSEOFNRLONG | D34: =RTD("cqg.rtd",,"StudyData",K15, "Bar", "", "Close","W",$I$1,,,,,"T") -> 79746 | F34: 4241490375 | G34: Soybeans Options and Futures Combined Nonreportable Long | N34: X.US.ZSEOFNRLONG | O34: =RTD("cqg.rtd",,"StudyData",Y15, "Bar", "", "Close","W",$L$1,,,,,"T") -> 65152 | P34: 2976632000 | Q34: 4241490375 | R34: Soybeans Options and Futures Combined Nonreportable Long $4,241,490,375 ∆ $1,264,858,375 | X34: ∆ | Y34: 1264858375
B35: X.US.ZSEOFMMSPR | D35: =RTD("cqg.rtd",,"StudyData",K16, "Bar", "", "Close","W",$I$1,,,,,"T") -> 119450 | F35: 6353246875 | G35: Soybeans Options and Futures Combined Managed Money Spreading | N35: X.US.ZSEOFMMSPR | O35: =RTD("cqg.rtd",,"StudyData",Y16, "Bar", "", "Close","W",$L$1,,,,,"T") -> 121360 | P35: 5544635000 | Q35: 6353246875 | R35: Soybeans Options and Futures Combined Managed Money Spreading $6,353,246,875 ∆ $808,611,875 | X35: ∆ | Y35: 808611875
B36: X.US.ZSEOFMMSHT | D36: =RTD("cqg.rtd",,"StudyData",K17, "Bar", "", "Close","W",$I$1,,,,,"T") -> 3509 | F36: 186634937.5 | G36: Soybeans Options and Futures Combined Managed Money Short | N36: X.US.ZSEOFMMSHT | O36: =RTD("cqg.rtd",,"StudyData",Y17, "Bar", "", "Close","W",$L$1,,,,,"T") -> 26393 | P36: 1205830188 | Q36: 186634937.5 | R36: Soybeans Options and Futures Combined Managed Money Short $186,634,938 ∆ -$1,019,195,250 | X36: ∆ | Y36: -1019195250
B37: =K18 -> X.US.ZSEOFMMLONG | D37: =RTD("cqg.rtd",,"StudyData",K18, "Bar", "", "Close","W",$I$1,,,,,"T") -> 235401 | F37: =D37*$K$3 -> 1.252039069e+10 | G37: Soybeans Options and Futures Combined Managed Money Long | N37: X.US.ZSEOFMMLONG | O37: =RTD("cqg.rtd",,"StudyData",Y18, "Bar", "", "Close","W",$L$1,,,,,"T") -> 133451 | P37: 6097042562 | Q37: 1.252039069e+10 | R37: Soybeans Options and Futures Combined Managed Money Long $12,520,390,688 ∆ $6,423,348,125 | X37: ∆ | Y37: 6423348125
R40: =R25 -> Soybeans Options and Futures Combined Swap Dealers Spreading $3,237,044,438 ∆ $1,971,592,063
AD59: Soybeans Options and Futures Combined
AD60: Producer/Merchant/Processor/User Long/Short Diff
Z61: =LEN(O59) -> 0

Sheet Sheet2 (3) (hidden)
N1: Vlookup | O1: Symbol | P1: Volume | Q1: rank1 | R1: rank2
N2: =R2 -> 6 | O2: A | P2: 100 | Q2: =RANK($P2,$P$2:P$7) -> 6 | R2: =RANK($P2,$P$2:P$7)+COUNTIF($P$2:P2,P2)-1 -> 6 | S2: =RANK($P2,$P$2:P$7)+COUNTIF($P$2:P2,P2)-1 -> 6
N3: =R3 -> 3 | O3: B | P3: 103 | Q3: =RANK($P3,$P$2:P$7) -> 3 | R3: =RANK($P3,$P$2:P$7)+COUNTIF($P$2:P3,P3)-1 -> 3 | S3: =RANK($P3,$P$2:P$7)+COUNTIF($P$2:P3,P3)-1 -> 3
N4: 5 | O4: C | P4: 102 | Q4: =RANK($P4,$P$2:P$7) -> 5 | R4: =RANK($P4,$P$2:P$7)+COUNTIF($P$2:P4,P4)-1 -> 5 | S4: =RANK($P4,$P$2:P$7)+COUNTIF($P$2:P4,P4)-1 -> 5
N5: 4 | O5: D | P5: 103 | Q5: =RANK($P5,$P$2:P$7) -> 3 | R5: =RANK($P5,$P$2:P$7)+COUNTIF($P$2:P5,P5)-1 -> 4 | S5: =RANK($P5,$P$2:P$7)+COUNTIF($P$2:P5,P5)-1 -> 4
N6: =R6 -> 2 | O6: E | P6: 104 | Q6: =RANK($P6,$P$2:P$7) -> 2 | R6: =RANK($P6,$P$2:P$7)+COUNTIF($P$2:P6,P6)-1 -> 2 | S6: =RANK($P6,$P$2:P$7)+COUNTIF($P$2:P6,P6)-1 -> 2
N7: 1 | O7: F | P7: 105 | Q7: =RANK($P7,$P$2:P$7) -> 1 | R7: =RANK($P7,$P$2:P$7)+COUNTIF($P$2:P7,P7)-1 -> 1 | S7: =RANK($P7,$P$2:P$7)+COUNTIF($P$2:P7,P7)-1 -> 1
A8: =RANK($C8,$C$8:C$12)+COUNTIF($C$8:C8,C8)-1 -> 5 | B8: ="X.US."&'Sheet1 (3)'!$C$1&"PMPUDIF" -> X.US.ZSEPMPUDIF | C8: =RTD("cqg.rtd",,"StudyData",B8, "Bar", "", "Close","W",-1,,,,,"T") -> -399457 | D8: =VLOOKUP(B8,Symbols!$A$1:$B$3103,2,FALSE) -> Soybeans Producer/Merchant/Processor/User Long/Short Diff | K8: ='Sheet1 (3)'!K3 -> 53187.5 | N8: =VLOOKUP(O8,$A$8:$D$12,2,FALSE) -> X.US.ZSEMMDIFF | O8: 1 | P8: =VLOOKUP(O8,$A$8:$D$12,3,FALSE)*$K$8 -> 1.210797481e+10 | Q8: =VLOOKUP(O8,$A$8:$D$12,4,FALSE) -> Soybeans Managed Money Long/Short Diff
A9: =RANK($C9,$C$8:C$12)+COUNTIF($C$8:C9,C9)-1 -> 2 | B9: ="X.US."&'Sheet1 (3)'!$C$1&"SDDIFF" -> X.US.ZSESDDIFF | C9: =RTD("cqg.rtd",,"StudyData",B9, "Bar", "", "Close","W",-1,,,,,"T") -> 148451 | D9: =VLOOKUP(B9,Symbols!$A$1:$B$3103,2,FALSE) -> Soybeans Swap Dealers Long/Short Diff | N9: =VLOOKUP(O9,$A$8:$D$12,2,FALSE) -> X.US.ZSESDDIFF | O9: 2 | P9: =VLOOKUP(O9,$A$8:$D$12,3,FALSE)*$K$8 -> 7895737562 | Q9: =VLOOKUP(O9,$A$8:$D$12,4,FALSE) -> Soybeans Swap Dealers Long/Short Diff
A10: =RANK($C10,$C$8:C$12)+COUNTIF($C$8:C10,C10)-1 -> 3 | B10: ="X.US."&'Sheet1 (3)'!$C$1&"ORDIFF" -> X.US.ZSEORDIFF | C10: =RTD("cqg.rtd",,"StudyData",B10, "Bar", "", "Close","W",-1,,,,,"T") -> 32225 | D10: =VLOOKUP(B10,Symbols!$A$1:$B$3103,2,FALSE) -> Soybeans Other Reportables Long/Short Diff | N10: X.US.ZSEORDIFF | O10: 3 | P10: =VLOOKUP(O10,$A$8:$D$12,3,FALSE)*$K$8 -> 1713967188 | Q10: Soybeans Other Reportables Long/Short Diff
A11: =RANK($C11,$C$8:C$12)+COUNTIF($C$8:C11,C11)-1 -> 4 | B11: ="X.US."&'Sheet1 (3)'!$C$1&"DNRDIFF" -> X.US.ZSEDNRDIFF | C11: =RTD("cqg.rtd",,"StudyData",B11, "Bar", "", "Close","W",-1,,,,,"T") -> -8866 | D11: =VLOOKUP(B11,Symbols!$A$1:$B$3103,2,FALSE) -> Soybeans Nonreportable Long/Short Diff | N11: X.US.ZSEDNRDIFF | O11: 4 | P11: =VLOOKUP(O11,$A$8:$D$12,3,FALSE)*$K$8 -> -471560375 | Q11: Soybeans Nonreportable Long/Short Diff
A12: =RANK($C12,$C$8:C$12)+COUNTIF($C$8:C12,C12)-1 -> 1 | B12: ="X.US."&'Sheet1 (3)'!$C$1&"MMDIFF" -> X.US.ZSEMMDIFF | C12: =RTD("cqg.rtd",,"StudyData",B12, "Bar", "", "Close","W",-1,,,,,"T") -> 227647 | D12: =VLOOKUP(B12,Symbols!$A$1:$B$3103,2,FALSE) -> Soybeans Managed Money Long/Short Diff | N12: X.US.ZSEPMPUDIF | O12: 5 | P12: =VLOOKUP(O12,$A$8:$D$12,3,FALSE)*$K$8 -> -2.124611919e+10 | Q12: Soybeans Producer/Merchant/Processor/User Long/Short Diff
C14: ='Sheet1 (3)'!K2 -> 1049850 | D14: =C14*K8 -> 55838896875 | G14: PMPUDIF
G15: SDDIFF | L15: ='Sheet1 (3)'!L1 -> -10 | N15: =RTD("cqg.rtd",,"StudyData",N8, "Bar", "", "Close","W",$L$15,,,,,"T")*$K$8 -> 5658830875
C16: =ABS(P8/$D$14) -> 0.2168376435 | G16: ORDIFF | N16: =RTD("cqg.rtd",,"StudyData",N9, "Bar", "", "Close","W",$L$15,,,,,"T")*$K$8 -> 7514968250
C17: =ABS(P9/$D$14) -> 0.1414021051 | G17: DNRDIFF | N17: =RTD("cqg.rtd",,"StudyData",N10, "Bar", "", "Close","W",$L$15,,,,,"T")*$K$8 -> 1711892875
C18: 0.03069486117 | G18: MMDIFF | N18: =RTD("cqg.rtd",,"StudyData",N11, "Bar", "", "Close","W",$L$15,,,,,"T")*$K$8 -> -242056312.5
C19: 0.008445015955 | N19: =RTD("cqg.rtd",,"StudyData",N12, "Bar", "", "Close","W",$L$15,,,,,"T")*$K$8 -> -1.464363569e+10
C20: 0.3804895938
N21: ='Sheet1 (3)'!O3*'Sheet1 (3)'!O2 -> 3.856477306e+10
N23: =ABS(N15/$N$21) -> 0.1467357494
N24: =ABS(N16/$N$21) -> 0.1948661344
N25: 0.04439006739
N26: 0.00627661706
N27: 0.3797153341

Sheet Sheet1 (4) (hidden)
B1: Symbol | C1: =TradersFinancialFuturesNoNum!D44 -> EP | D1: =RTD("cqg.rtd", ,"ContractData",C1, "LongDescription",, "T") -> E-Mini S&P 500, Dec 20 | H1: Week | I1: =IF(I2="",-1,0) -> -1 | J1: =IF(LEFT(RTD("cqg.rtd",,"StudyData",K6, "Bar", "", "Time","W",I1,,,,,"T"),3)="777","",RTD("cqg.rtd",,"StudyData",K6, "Bar", "", "Time","W",I1,,,,,"T")+1) -> 2020-10-20 | K1: Week | L1: =TradersFinancialFuturesNoNum!L44 -> -10 | N1: =IF(LEFT( RTD("cqg.rtd",,"StudyData",K6, "Bar", "", "Time","W",L1,,,,,"T"),3)="777","",RTD("cqg.rtd",,"StudyData",K6, "Bar", "", "Time","W",L1,,,,,"T")+1) -> 2020-08-18
I2: =RTD("cqg.rtd",,"StudyData",K6, "Bar", "", "Close","W",0,,,,,"T") ->  | J2: =J1+1 -> 2020-10-21 | K2: =RTD("cqg.rtd",,"StudyData", "OI("&C1&",OIType:=CommodityOi) when (LocalMonth("&$C$1&")="&MONTH(J2)&" and LocalDay("&$C$1&")="&DAY(J2)&" and LocalYear("&$C$1&")="&YEAR(J2)&")", "Bar", "", "Close", "D", "0", "all", "", "","FALSE","T") -> 2438237 | N2: =N1+1 -> 2020-08-19 | O2: =IF(P2="",RTD("cqg.rtd",,"StudyData","OI("&C1&",OIType:=CommodityOi) when (LocalMonth("&$C$1&")="&MONTH(N2)&" and LocalDay("&$C$1&")="&DAY(N2)+1&" and LocalYear("&$C$1&")="&YEAR(N2)&")","Bar","","Close","ADC","0","all","","","FALSE","T"),RTD("cqg.rtd",,"StudyData","OI("&C1&",OIType:=CommodityOi) when (LocalMonth("&$C$1&")="&MONTH(N2)&" and LocalDay("&$C$1&")="&DAY(N2)&" and LocalYear("&$C$1&")="&YEAR(N2)&")","Bar","","Close","ADC","0","all","","","FALSE","T")) -> 2721218 | P2: =RTD("cqg.rtd",,"StudyData", "OI("&C1&",OIType:=CommodityOi) when (LocalMonth("&$C$1&")="&MONTH(N2)&" and LocalDay("&$C$1&")="&DAY(N1)+1&" and LocalYear("&$C$1&")="&YEAR(N2)&")", "Bar", "", "Close", "ADC", "0", "all", "", "","FALSE","T") -> 2721218
B3: =IF(LEFT(I2,3)="777",1,0) -> 0 | J3: =J1 -> 2020-10-20 | K3: =RTD("cqg.rtd",,"StudyData", "PriceToDollar("&C1&",InputChoice=Close) when (LocalMonth("&$C$1&")="&MONTH(J3)&" and LocalDay("&$C$1&")="&DAY(J3)&" and LocalYear("&$C$1&")="&YEAR(J3)&")", "Bar", "", "Close", "D", "0", "all", "", "","FALSE","T") -> 171612.5 | N3: =N1 -> 2020-08-18 | O3: =RTD("cqg.rtd",,"StudyData", "PriceToDollar("&C1&",InputChoice=Close) when (LocalMonth("&$C$1&")="&MONTH(N3)&" and LocalDay("&$C$1&")="&DAY(N3)&" and LocalYear("&$C$1&")="&YEAR(N3)&")", "Bar", "", "Close", "ADC", "0", "all", "", "","FALSE","T") -> 169350 | S3: , &TEXT(AC6,".0%")
B5: Agriculture, Petroleum and Products, Natural Gas and Products, Electricity or Metals
H6: =K3*N6 -> 3.619515374e+16 | K6: ="X.US."&$C$1&L6 -> X.US.EPOFAMILONG | L6: OFAMILONG | N6: =RTD("cqg.rtd",,"StudyData",K6, "Bar", "", "Close","W",$I$1,,,,,"T")*$K$3 -> 210912105725 | O6: =N6/$K$2 -> 86501.88875 | P6: =VLOOKUP(K6,Symbols!$A$1:$B$3103,2,FALSE) -> E-mini SP500 Options and Futures Combined Asset Manager/Institutional Long | Q6: =P6&", "&TEXT(O6,".0%") -> E-mini SP500 Options and Futures Combined Asset Manager/Institutional Long, 8650188.9% | Y6: ="X.US."&$C$1&Z6 -> X.US.EPOFAMILONG | Z6: OFAMILONG | AB6: =RTD("cqg.rtd",,"StudyData",Y6, "Bar", "", "Close","W",$L$1,,,,,"T") -> 1313841 | AC6: =AB6/$O$2 -> 0.4828135783 | AD6: =P6&", "&TEXT(AC6,".0%") -> E-mini SP500 Options and Futures Combined Asset Manager/Institutional Long, 48.3%
B7: Incorrect Symbol. Please enter a Financial Futures symbol. | K7: ="X.US."&$C$1&L7 -> X.US.EPOFAMISHT | L7: OFAMISHT | N7: =RTD("cqg.rtd",,"StudyData",K7, "Bar", "", "Close","W",$I$1,,,,,"T")*$K$3 -> 101316244525 | O7: =N7/$K$2 -> 41553.07483 | P7: =VLOOKUP(K7,Symbols!$A$1:$B$3103,2,FALSE) -> E-mini SP500 Options and Futures Combined Asset Manager/Institutional Short | Q7: =P7&", "&TEXT(O7,".0%") -> E-mini SP500 Options and Futures Combined Asset Manager/Institutional Short, 4155307.5% | Y7: ="X.US."&$C$1&Z7 -> X.US.EPOFAMISHT | Z7: OFAMISHT | AB7: =RTD("cqg.rtd",,"StudyData",Y7, "Bar", "", "Close","W",$L$1,,,,,"T") -> 635524 | AC7: =AB7/$O$2 -> 0.2335439498 | AD7: =P7&", "&TEXT(AC7,".0%") -> E-mini SP500 Options and Futures Combined Asset Manager/Institutional Short, 23.4%
K8: X.US.EPOFAMISPR | L8: OFAMISPR | N8: =RTD("cqg.rtd",,"StudyData",K8, "Bar", "", "Close","W",$I$1,,,,,"T")*$K$3 -> 4.853699176e+10 | O8: 19906.59307 | P8: =VLOOKUP(K8,Symbols!$A$1:$B$3103,2,FALSE) -> E-mini SP500 Options and Futures Combined Asset Manager/Institutional Spreading | Q8: E-mini SP500 Options and Futures Combined Asset Manager/Institutional Spreading, 1990659.3% | Y8: X.US.EPOFAMISPR | Z8: OFAMISPR | AB8: =RTD("cqg.rtd",,"StudyData",Y8, "Bar", "", "Close","W",$L$1,,,,,"T") -> 310924 | AC8: 0.1142591296 | AD8: E-mini SP500 Options and Futures Combined Asset Manager/Institutional Spreading, 11.4%
K9: X.US.EPOFDILONG | L9: OFDILONG | N9: =RTD("cqg.rtd",,"StudyData",K9, "Bar", "", "Close","W",$I$1,,,,,"T")*$K$3 -> 4.854728851e+10 | O9: 19910.8161 | P9: =VLOOKUP(K9,Symbols!$A$1:$B$3103,2,FALSE) -> E-mini SP500 Options and Futures Combined Dealer Intermediary Long | Q9: E-mini SP500 Options and Futures Combined Dealer Intermediary Long, 1991081.6% | Y9: X.US.EPOFDILONG | Z9: OFDILONG | AB9: =RTD("cqg.rtd",,"StudyData",Y9, "Bar", "", "Close","W",$L$1,,,,,"T") -> 483685 | AC9: 0.1777457741 | AD9: E-mini SP500 Options and Futures Combined Dealer Intermediary Long, 17.8%
C10: OFAMILONG | E10: =I2 ->  | K10: X.US.EPOFDISHT | L10: OFDISHT | N10: =RTD("cqg.rtd",,"StudyData",K10, "Bar", "", "Close","W",$I$1,,,,,"T")*$K$3 -> 8.629071209e+10 | O10: 35390.61711 | P10: =VLOOKUP(K10,Symbols!$A$1:$B$3103,2,FALSE) -> E-mini SP500 Options and Futures Combined Dealer Intermediary Short | Q10: E-mini SP500 Options and Futures Combined Dealer Intermediary Short, 3539061.7% | Y10: X.US.EPOFDISHT | Z10: OFDISHT | AB10: =RTD("cqg.rtd",,"StudyData",Y10, "Bar", "", "Close","W",$L$1,,,,,"T") -> 380670 | AC10: 0.1398895642 | AD10: E-mini SP500 Options and Futures Combined Dealer Intermediary Short, 14.0%
C11: OFAMISHT | K11: X.US.EPOFDISPR | L11: OFDISPR | N11: =RTD("cqg.rtd",,"StudyData",K11, "Bar", "", "Close","W",$I$1,,,,,"T")*$K$3 -> 2.259192756e+10 | O11: 9265.681541 | P11: =VLOOKUP(K11,Symbols!$A$1:$B$3103,2,FALSE) -> E-mini SP500 Options and Futures Combined Dealer Intermediary Spreading | Q11: E-mini SP500 Options and Futures Combined Dealer Intermediary Spreading, 926568.2% | Y11: X.US.EPOFDISPR | Z11: OFDISPR | AB11: =RTD("cqg.rtd",,"StudyData",Y11, "Bar", "", "Close","W",$L$1,,,,,"T") -> 178848 | AC11: 0.06572351058 | AD11: E-mini SP500 Options and Futures Combined Dealer Intermediary Spreading, 6.6%
C12: OFAMISPR | K12: X.US.EPOFLFLONG | L12: OFLFLONG | N12: =RTD("cqg.rtd",,"StudyData",K12, "Bar", "", "Close","W",$I$1,,,,,"T")*$K$3 -> 3.348485939e+10 | O12: 13733.22585 | P12: =VLOOKUP(K12,Symbols!$A$1:$B$3103,2,FALSE) -> E-mini SP500 Options and Futures Combined Leveraged Funds Long | Q12: E-mini SP500 Options and Futures Combined Leveraged Funds Long, 1373322.6% | Y12: X.US.EPOFLFLONG | Z12: OFLFLONG | AB12: =RTD("cqg.rtd",,"StudyData",Y12, "Bar", "", "Close","W",$L$1,,,,,"T") -> 217339 | AC12: 0.07986827957 | AD12: E-mini SP500 Options and Futures Combined Leveraged Funds Long, 8.0%
C13: OFDILONG | K13: X.US.EPOFLFSHT | L13: OFLFSHT | N13: =RTD("cqg.rtd",,"StudyData",K13, "Bar", "", "Close","W",$I$1,,,,,"T")*$K$3 -> 6.659886416e+10 | O13: 27314.3522 | P13: =VLOOKUP(K13,Symbols!$A$1:$B$3103,2,FALSE) -> E-mini SP500 Options and Futures Combined Leveraged Funds Short | Q13: E-mini SP500 Options and Futures Combined Leveraged Funds Short, 2731435.2% | Y13: X.US.EPOFLFSHT | Z13: OFLFSHT | AB13: =RTD("cqg.rtd",,"StudyData",Y13, "Bar", "", "Close","W",$L$1,,,,,"T") -> 555075 | AC13: 0.20398035 | AD13: E-mini SP500 Options and Futures Combined Leveraged Funds Short, 20.4%
C14: OFDISHT | K14: X.US.EPOFLFSPR | L14: OFLFSPR | N14: =RTD("cqg.rtd",,"StudyData",K14, "Bar", "", "Close","W",$I$1,,,,,"T")*$K$3 -> 8.204776464e+10 | O14: 33650.44688 | P14: =VLOOKUP(K14,Symbols!$A$1:$B$3103,2,FALSE) -> E-mini SP500 Options and Futures Combined Leveraged Funds Spreading | Q14: E-mini SP500 Options and Futures Combined Leveraged Funds Spreading, 3365044.7% | Y14: X.US.EPOFLFSPR | Z14: OFLFSPR | AB14: =RTD("cqg.rtd",,"StudyData",Y14, "Bar", "", "Close","W",$L$1,,,,,"T") -> 554829 | AC14: 0.2038899493 | AD14: E-mini SP500 Options and Futures Combined Leveraged Funds Spreading, 20.4%
C15: OFDISPR | K15: X.US.EPOFNRLONG | L15: OFNRLONG | N15: =RTD("cqg.rtd",,"StudyData",K15, "Bar", "", "Close","W",$I$1,,,,,"T")*$K$3 -> 5.516329361e+10 | O15: 22624.25417 | P15: =VLOOKUP(K15,Symbols!$A$1:$B$3103,2,FALSE) -> E-mini SP500 Options and Futures Combined Nonreportable Long | Q15: E-mini SP500 Options and Futures Combined Nonreportable Long, 2262425.4% | Y15: X.US.EPOFNRLONG | Z15: OFNRLONG | AB15: =RTD("cqg.rtd",,"StudyData",Y15, "Bar", "", "Close","W",$L$1,,,,,"T") -> 302381 | AC15: 0.1111197265 | AD15: E-mini SP500 Options and Futures Combined Nonreportable Long, 11.1%
C16: OFLFLONG | K16: X.US.EPOFNRSHT | L16: OFNRSHT | N16: =RTD("cqg.rtd",,"StudyData",K16, "Bar", "", "Close","W",$I$1,,,,,"T")*$K$3 -> 51627218050 | O16: 21173.995 | P16: =VLOOKUP(K16,Symbols!$A$1:$B$3103,2,FALSE) -> E-mini SP500 Options and Futures Combined Nonreportable Short | Q16: E-mini SP500 Options and Futures Combined Nonreportable Short, 2117399.5% | Y16: X.US.EPOFNRSHT | Z16: OFNRSHT | AB16: =RTD("cqg.rtd",,"StudyData",Y16, "Bar", "", "Close","W",$L$1,,,,,"T") -> 407520 | AC16: 0.1497564693 | AD16: E-mini SP500 Options and Futures Combined Nonreportable Short, 15.0%
C17: OFLFSHT | K17: X.US.EPOFORLONG | L17: OFORLONG | N17: =RTD("cqg.rtd",,"StudyData",K17, "Bar", "", "Close","W",$I$1,,,,,"T")*$K$3 -> 20502202150 | O17: 8408.617435 | P17: =VLOOKUP(K17,Symbols!$A$1:$B$3103,2,FALSE) -> E-mini SP500 Options and Futures Combined Other Reportables Long | Q17: E-mini SP500 Options and Futures Combined Other Reportables Long, 840861.7% | Y17: X.US.EPOFORLONG | Z17: OFORLONG | AB17: =RTD("cqg.rtd",,"StudyData",Y17, "Bar", "", "Close","W",$L$1,,,,,"T") -> 94569 | AC17: 0.03475245276 | AD17: E-mini SP500 Options and Futures Combined Other Reportables Long, 3.5%
C18: OFLFSPR | K18: X.US.EPOFORSHT | L18: OFORSHT | N18: =RTD("cqg.rtd",,"StudyData",K18, "Bar", "", "Close","W",$I$1,,,,,"T")*$K$3 -> 6.277671056e+10 | O18: 25746.76316 | P18: =VLOOKUP(K18,Symbols!$A$1:$B$3103,2,FALSE) -> E-mini SP500 Options and Futures Combined Other Reportables Short | Q18: E-mini SP500 Options and Futures Combined Other Reportables Short, 2574676.3% | Y18: X.US.EPOFORSHT | Z18: OFORSHT | AB18: =RTD("cqg.rtd",,"StudyData",Y18, "Bar", "", "Close","W",$L$1,,,,,"T") -> 433027 | AC18: 0.1591298455 | AD18: E-mini SP500 Options and Futures Combined Other Reportables Short, 15.9%
C19: OFNRLONG | K19: X.US.EPOFORSPR | L19: OFORSPR | N19: =RTD("cqg.rtd",,"StudyData",K19, "Bar", "", "Close","W",$I$1,,,,,"T")*$K$3 -> 2926164738 | O19: 1200.114975 | P19: =VLOOKUP(K19,Symbols!$A$1:$B$3103,2,FALSE) -> E-mini SP500 Options and Futures Combined Other Reportables Spreading | Q19: E-mini SP500 Options and Futures Combined Other Reportables Spreading, 120011.5% | Y19: X.US.EPOFORSPR | Z19: OFORSPR
C20: OFNRSHT | P20: ="Traders in Financial Futures COT as a Percentage of Total Open Interest, Weeks: "&TEXT(Q21,"MM/DD/YY")&" vs. "&TEXT(R21,"MM/DD/YY") -> Traders in Financial Futures COT as a Percentage of Total Open Interest, Weeks: 10/20/20 vs. 08/18/20
C21: OFORLONG | Q21: =J1 -> 2020-10-20 | R21: =N1 -> 2020-08-18 | AC21: =IFERROR(N6/$K$2,"NA") -> 86501.88875 | AD21: =P6&", "&TEXT(AC21,".00%")&" "&AE21&" "&TEXT(AF21,".00%") -> E-mini SP500 Options and Futures Combined Asset Manager/Institutional Long, 8650188.88% ∆ 8650140.59% | AE21: ∆ | AF21: =IFERROR(O6-AC6,"NA") -> 86501.40594
C22: OFORSHT | AC22: =IFERROR(N7/$K$2,"NA") -> 41553.07483 | AD22: =P7&", "&TEXT(AC22,".00%")&" "&AE22&" "&TEXT(AF22,".00%") -> E-mini SP500 Options and Futures Combined Asset Manager/Institutional Short, 4155307.48% ∆ 4155284.13% | AE22: ∆ | AF22: =IFERROR(O7-AC7,"NA") -> 41552.84129
C23: OFORSPR | AC23: 19906.59307 | AD23: E-mini SP500 Options and Futures Combined Asset Manager/Institutional Spreading, 1990659.31% ∆ 1990647.88% | AE23: ∆ | AF23: 19906.47881
AC24: 19910.8161 | AD24: E-mini SP500 Options and Futures Combined Dealer Intermediary Long, 1991081.61% ∆ 1991063.84% | AE24: ∆ | AF24: 19910.63835
N25: =Y6 -> X.US.EPOFAMILONG | O25: =RTD("cqg.rtd",,"StudyData",Y6, "Bar", "", "Close","W",$L$1,,,,,"T") -> 1313841 | P25: =$O$3*O25 -> 222498973350 | Q25: =N6 -> 210912105725 | R25: =P6&" "&TEXT(Q25,"$#,###")&" "&X25&" "&TEXT(Y25,"$#,###") -> E-mini SP500 Options and Futures Combined Asset Manager/Institutional Long $210,912,105,725 ∆ -$11,586,867,625 | X25: ∆ | Y25: =Q25-P25 -> -11586867625 | AC25: 35390.61711 | AD25: E-mini SP500 Options and Futures Combined Dealer Intermediary Short, 3539061.71% ∆ 3539047.72% | AE25: ∆ | AF25: 35390.47722
N26: =Y7 -> X.US.EPOFAMISHT | O26: =RTD("cqg.rtd",,"StudyData",Y7, "Bar", "", "Close","W",$L$1,,,,,"T") -> 635524 | P26: =$O$3*O26 -> 107625989400 | Q26: =N7 -> 101316244525 | R26: =P7&" "&TEXT(Q26,"$#,###")&" "&X26&" "&TEXT(Y26,"$#,###") -> E-mini SP500 Options and Futures Combined Asset Manager/Institutional Short $101,316,244,525 ∆ -$6,309,744,875 | X26: ∆ | Y26: =Q26-P26 -> -6309744875 | AC26: 9265.681541 | AD26: E-mini SP500 Options and Futures Combined Dealer Intermediary Spreading, 926568.15% ∆ 926561.58% | AE26: ∆ | AF26: 9265.615817
N27: X.US.EPOFAMISPR | O27: =RTD("cqg.rtd",,"StudyData",Y8, "Bar", "", "Close","W",$L$1,,,,,"T") -> 310924 | P27: 52654979400 | Q27: 4.853699176e+10 | R27: E-mini SP500 Options and Futures Combined Asset Manager/Institutional Spreading $48,536,991,763 ∆ -$4,117,987,638 | X27: ∆ | Y27: -4117987638 | AC27: 13733.22585 | AD27: E-mini SP500 Options and Futures Combined Leveraged Funds Long, 1373322.58% ∆ 1373314.60% | AE27: ∆ | AF27: 13733.14598
N28: X.US.EPOFDILONG | O28: =RTD("cqg.rtd",,"StudyData",Y9, "Bar", "", "Close","W",$L$1,,,,,"T") -> 483685 | P28: 81912054750 | Q28: 4.854728851e+10 | R28: E-mini SP500 Options and Futures Combined Dealer Intermediary Long $48,547,288,513 ∆ -$33,364,766,238 | X28: ∆ | Y28: -3.336476624e+10 | AC28: 27314.3522 | AD28: E-mini SP500 Options and Futures Combined Leveraged Funds Short, 2731435.22% ∆ 2731414.82% | AE28: ∆ | AF28: 27314.14822
N29: X.US.EPOFDISHT | O29: =RTD("cqg.rtd",,"StudyData",Y10, "Bar", "", "Close","W",$L$1,,,,,"T") -> 380670 | P29: 64466464500 | Q29: 8.629071209e+10 | R29: E-mini SP500 Options and Futures Combined Dealer Intermediary Short $86,290,712,088 ∆ $21,824,247,588 | X29: ∆ | Y29: 2.182424759e+10 | AC29: 33650.44688 | AD29: E-mini SP500 Options and Futures Combined Leveraged Funds Spreading, 3365044.69% ∆ 3365024.30% | AE29: ∆ | AF29: 33650.24299
N30: X.US.EPOFDISPR | O30: =RTD("cqg.rtd",,"StudyData",Y11, "Bar", "", "Close","W",$L$1,,,,,"T") -> 178848 | P30: 30287908800 | Q30: 2.259192756e+10 | R30: E-mini SP500 Options and Futures Combined Dealer Intermediary Spreading $22,591,927,563 ∆ -$7,695,981,238 | X30: ∆ | Y30: -7695981238 | AC30: 22624.25417 | AD30: E-mini SP500 Options and Futures Combined Nonreportable Long, 2262425.42% ∆ 2262414.30% | AE30: ∆ | AF30: 22624.14305
N31: X.US.EPOFLFLONG | O31: =RTD("cqg.rtd",,"StudyData",Y12, "Bar", "", "Close","W",$L$1,,,,,"T") -> 217339 | P31: 36806359650 | Q31: 3.348485939e+10 | R31: E-mini SP500 Options and Futures Combined Leveraged Funds Long $33,484,859,388 ∆ -$3,321,500,263 | X31: ∆ | Y31: -3321500262 | AC31: 21173.995 | AD31: E-mini SP500 Options and Futures Combined Nonreportable Short, 2117399.50% ∆ 2117384.52% | AE31: ∆ | AF31: 21173.84524
N32: X.US.EPOFLFSHT | O32: =RTD("cqg.rtd",,"StudyData",Y13, "Bar", "", "Close","W",$L$1,,,,,"T") -> 555075 | P32: 94001951250 | Q32: 6.659886416e+10 | R32: E-mini SP500 Options and Futures Combined Leveraged Funds Short $66,598,864,163 ∆ -$27,403,087,088 | X32: ∆ | Y32: -2.740308709e+10 | AC32: 8408.617435 | AD32: E-mini SP500 Options and Futures Combined Other Reportables Long, 840861.74% ∆ 840858.27% | AE32: ∆ | AF32: 8408.582683
N33: X.US.EPOFLFSPR | O33: =RTD("cqg.rtd",,"StudyData",Y14, "Bar", "", "Close","W",$L$1,,,,,"T") -> 554829 | P33: 93960291150 | Q33: 8.204776464e+10 | R33: E-mini SP500 Options and Futures Combined Leveraged Funds Spreading $82,047,764,638 ∆ -$11,912,526,513 | X33: ∆ | Y33: -1.191252651e+10 | AC33: 25746.76316 | AD33: E-mini SP500 Options and Futures Combined Other Reportables Short, 2574676.32% ∆ 2574660.40% | AE33: ∆ | AF33: 25746.60403
N34: X.US.EPOFNRLONG | O34: =RTD("cqg.rtd",,"StudyData",Y15, "Bar", "", "Close","W",$L$1,,,,,"T") -> 302381 | P34: 51208222350 | Q34: 5.516329361e+10 | R34: E-mini SP500 Options and Futures Combined Nonreportable Long $55,163,293,613 ∆ $3,955,071,263 | X34: ∆ | Y34: 3955071262
N35: X.US.EPOFNRSHT | O35: =RTD("cqg.rtd",,"StudyData",Y16, "Bar", "", "Close","W",$L$1,,,,,"T") -> 407520 | P35: 69013512000 | Q35: 51627218050 | R35: E-mini SP500 Options and Futures Combined Nonreportable Short $51,627,218,050 ∆ -$17,386,293,950 | X35: ∆ | Y35: -17386293950
N36: X.US.EPOFORLONG | O36: =RTD("cqg.rtd",,"StudyData",Y17, "Bar", "", "Close","W",$L$1,,,,,"T") -> 94569 | P36: 16015260150 | Q36: 20502202150 | R36: E-mini SP500 Options and Futures Combined Other Reportables Long $20,502,202,150 ∆ $4,486,942,000 | X36: ∆ | Y36: 4486942000
N37: X.US.EPOFORSHT | O37: =RTD("cqg.rtd",,"StudyData",Y18, "Bar", "", "Close","W",$L$1,,,,,"T") -> 433027 | P37: 73333122450 | Q37: 6.277671056e+10 | R37: E-mini SP500 Options and Futures Combined Other Reportables Short $62,776,710,563 ∆ -$10,556,411,888 | X37: ∆ | Y37: -1.055641189e+10
N38: X.US.EPOFORSPR | O38: =RTD("cqg.rtd",,"StudyData",Y19, "Bar", "", "Close","W",$L$1,,,,,"T") -> 18104 | P38: =$O$3*O38 -> 3065912400 | Q38: 2926164738 | R38: E-mini SP500 Options and Futures Combined Other Reportables Spreading $2,926,164,738 ∆ -$139,747,663 | X38: ∆ | Y38: =Q38-P38 -> -139747662.5
Q43: =R38 -> E-mini SP500 Options and Futures Combined Other Reportables Spreading $2,926,164,738 ∆ -$139,747,663
N59: X.US.ZSEOFPMPUDIFF | O59: Soybeans Options and Futures Combined Producer/Merchant/Processor/User Long/Short Diff | AD59: Soybeans Options and Futures Combined
AD60: Producer/Merchant/Processor/User Long/Short Diff
O61: =RTD("cqg.rtd",,"StudyData",N59, "Bar", "", "Close","W",-1,,,,,"T") -> -373040 | P61: =RTD("cqg.rtd",,"StudyData",N59, "Bar", "", "Close","W",-4,,,,,"T") -> -351874 | Q61: =O61-P61 -> -21166 | Z61: =LEN(O59) -> 86

Sheet Sheet2 (4) (hidden)
N1: Vlookup | O1: Symbol | P1: Volume | Q1: rank1 | R1: rank2
N2: =R2 -> 6 | O2: A | P2: 100 | Q2: =RANK($P2,$P$2:P$7) -> 6 | R2: =RANK($P2,$P$2:P$7)+COUNTIF($P$2:P2,P2)-1 -> 6 | S2: =RANK($P2,$P$2:P$7)+COUNTIF($P$2:P2,P2)-1 -> 6
N3: =R3 -> 3 | O3: B | P3: 103 | Q3: =RANK($P3,$P$2:P$7) -> 3 | R3: =RANK($P3,$P$2:P$7)+COUNTIF($P$2:P3,P3)-1 -> 3 | S3: =RANK($P3,$P$2:P$7)+COUNTIF($P$2:P3,P3)-1 -> 3
N4: 5 | O4: C | P4: 102 | Q4: =RANK($P4,$P$2:P$7) -> 5 | R4: =RANK($P4,$P$2:P$7)+COUNTIF($P$2:P4,P4)-1 -> 5 | S4: =RANK($P4,$P$2:P$7)+COUNTIF($P$2:P4,P4)-1 -> 5
N5: 4 | O5: D | P5: 103 | Q5: =RANK($P5,$P$2:P$7) -> 3 | R5: =RANK($P5,$P$2:P$7)+COUNTIF($P$2:P5,P5)-1 -> 4 | S5: =RANK($P5,$P$2:P$7)+COUNTIF($P$2:P5,P5)-1 -> 4
N6: =R6 -> 2 | O6: E | P6: 104 | Q6: =RANK($P6,$P$2:P$7) -> 2 | R6: =RANK($P6,$P$2:P$7)+COUNTIF($P$2:P6,P6)-1 -> 2 | S6: =RANK($P6,$P$2:P$7)+COUNTIF($P$2:P6,P6)-1 -> 2
N7: 1 | O7: F | P7: 105 | Q7: =RANK($P7,$P$2:P$7) -> 1 | R7: =RANK($P7,$P$2:P$7)+COUNTIF($P$2:P7,P7)-1 -> 1 | S7: =RANK($P7,$P$2:P$7)+COUNTIF($P$2:P7,P7)-1 -> 1
A8: =RANK($C8,$C$8:C$12)+COUNTIF($C$8:C8,C8)-1 -> 1 | B8: ="X.US."&'Sheet1 (4)'!$C$1&"AMIDIFF" -> X.US.EPAMIDIFF | C8: =RTD("cqg.rtd",,"StudyData",B8, "Bar", "", "Close","W",-1,,,,,"T") -> 632806 | D8: =VLOOKUP(B8,Symbols!$A$1:$B$3103,2,FALSE) -> E-mini SP500 Asset Manager/Institutional Long/Short Diff | N8: =VLOOKUP(O8,$A$8:$D$12,2,FALSE) -> X.US.EPAMIDIFF | O8: 1 | P8: =VLOOKUP(O8,$A$8:$D$12,3,FALSE)*$K$9 -> 108597419675 | Q8: =VLOOKUP(O8,$A$8:$D$12,4,FALSE) -> E-mini SP500 Asset Manager/Institutional Long/Short Diff
A9: =RANK($C9,$C$8:C$12)+COUNTIF($C$8:C9,C9)-1 -> 4 | B9: ="X.US."&'Sheet1 (4)'!$C$1&"DIDIFF" -> X.US.EPDIDIFF | C9: =RTD("cqg.rtd",,"StudyData",B9, "Bar", "", "Close","W",-1,,,,,"T") -> -219410 | D9: =VLOOKUP(B9,Symbols!$A$1:$B$3103,2,FALSE) -> E-mini SP500 Dealer Intermediary Long/Short Diff | K9: ='Sheet1 (4)'!K3 -> 171612.5 | N9: =VLOOKUP(O9,$A$8:$D$12,2,FALSE) -> X.US.EPDNRDIFF | O9: 2 | P9: =VLOOKUP(O9,$A$8:$D$12,3,FALSE)*$K$9 -> 3946229438 | Q9: =VLOOKUP(O9,$A$8:$D$12,4,FALSE) -> E-mini SP500 Nonreportable Long/Short Diff
A10: =RANK($C10,$C$8:C$12)+COUNTIF($C$8:C10,C10)-1 -> 3 | B10: ="X.US."&'Sheet1 (4)'!$C$1&"LFDIFF" -> X.US.EPLFDIFF | C10: =RTD("cqg.rtd",,"StudyData",B10, "Bar", "", "Close","W",-1,,,,,"T") -> -190619 | D10: =VLOOKUP(B10,Symbols!$A$1:$B$3103,2,FALSE) -> E-mini SP500 Leveraged Funds Long/Short Diff | N10: X.US.EPLFDIFF | O10: 3 | P10: -3.271260314e+10 | Q10: E-mini SP500 Leveraged Funds Long/Short Diff
A11: =RANK($C11,$C$8:C$12)+COUNTIF($C$8:C11,C11)-1 -> 2 | B11: ="X.US."&'Sheet1 (4)'!$C$1&"DNRDIFF" -> X.US.EPDNRDIFF | C11: =RTD("cqg.rtd",,"StudyData",B11, "Bar", "", "Close","W",-1,,,,,"T") -> 22995 | D11: =VLOOKUP(B11,Symbols!$A$1:$B$3103,2,FALSE) -> E-mini SP500 Nonreportable Long/Short Diff | N11: X.US.EPDIDIFF | O11: 4 | P11: -37653498625 | Q11: E-mini SP500 Dealer Intermediary Long/Short Diff
A12: =RANK($C12,$C$8:C$12)+COUNTIF($C$8:C12,C12)-1 -> 5 | B12: ="X.US."&'Sheet1 (4)'!$C$1&"ORDIFF" -> X.US.EPORDIFF | C12: =RTD("cqg.rtd",,"StudyData",B12, "Bar", "", "Close","W",-1,,,,,"T") -> -245772 | D12: =VLOOKUP(B12,Symbols!$A$1:$B$3103,2,FALSE) -> E-mini SP500 Other Reportables Long/Short Diff | N12: X.US.EPORDIFF | O12: 5 | P12: -42177547350 | Q12: E-mini SP500 Other Reportables Long/Short Diff
C14: ='Sheet1 (4)'!K2 -> 2438237 | D14: =C14*K9 -> 4.184319472e+11 | G14: AMIDIFF
G15: DIDIFF | L15: ='Sheet1 (4)'!L1 -> -10 | N15: =RTD("cqg.rtd",,"StudyData",N8, "Bar", "", "Close","W",$L$15,,,,,"T")*$K$16 -> 114994746600
C16: =ABS(P8/$D$14) -> 0.2595342454 | G16: LFDIFF | K16: ='Sheet1 (4)'!O3 -> 169350 | N16: =RTD("cqg.rtd",,"StudyData",N9, "Bar", "", "Close","W",$L$15,,,,,"T")*$K$16 -> -16624920150
C17: =ABS(P9/$D$14) -> 0.009430994608 | G17: DNRDIFF | N17: =RTD("cqg.rtd",,"StudyData",N10, "Bar", "", "Close","W",$L$15,,,,,"T")*$K$16 -> -58586463150
C18: 0.07817902854 | G18: ORDIFF | N18: =RTD("cqg.rtd",,"StudyData",N11, "Bar", "", "Close","W",$L$15,,,,,"T")*$K$16 -> 17606811450
C19: 0.08998715055 | N19: =RTD("cqg.rtd",,"StudyData",N12, "Bar", "", "Close","W",$L$15,,,,,"T")*$K$16 -> -57390174750
C20: 0.100799061
K21: =K16*N21 -> 571389948300 | N21: ='Sheet1 (2)'!O2 -> 3374018
N23: =ABS(N15/$K$21) -> 0.2012544094
N24: =ABS(N16/$K$21) -> 0.02909557685
N25: 0.1025332408
J26: X.US.EPAMIDIFF | N26: 0.03081400277
N27: 0.1004395946

Sheet Symbols (hidden)
A1: X.US.ZQEAMILONG | B1: 30 day Fed Funds Asset Manager/Institutional Long
A2: X.US.ZQEAMIDIFF | B2: 30 day Fed Funds Asset Manager/Institutional Long/Short Diff
A3: X.US.ZQEAMISHT | B3: 30 day Fed Funds Asset Manager/Institutional Short
A4: X.US.ZQEAMISPR | B4: 30 day Fed Funds Asset Manager/Institutional Spreading
A5: X.US.ZQEDILONG | B5: 30 day Fed Funds Dealer Intermediary Long
A6: X.US.ZQEDIDIFF | B6: 30 day Fed Funds Dealer Intermediary Long/Short Diff
A7: X.US.ZQEDISHT | B7: 30 day Fed Funds Dealer Intermediary Short
A8: X.US.ZQEDISPR | B8: 30 day Fed Funds Dealer Intermediary Spreading
A9: X.US.ZQELFLONG | B9: 30 day Fed Funds Leveraged Funds Long
A10: X.US.ZQELFDIFF | B10: 30 day Fed Funds Leveraged Funds Long/Short Diff
A11: X.US.ZQELFSHT | B11: 30 day Fed Funds Leveraged Funds Short
A12: X.US.ZQELFSPR | B12: 30 day Fed Funds Leveraged Funds Spreading
A13: X.US.ZQEDNRLONG | B13: 30 day Fed Funds Nonreportable Long
A14: X.US.ZQEDNRDIFF | B14: 30 day Fed Funds Nonreportable Long/Short Diff
A15: X.US.ZQEDNRSHT | B15: 30 day Fed Funds Nonreportable Short
A16: X.US.ZQEOFAMILONG | B16: 30 day Fed Funds Options and Futures Combined Asset Manager/Institutional Long
A17: X.US.ZQEOFAMIDIFF | B17: 30 day Fed Funds Options and Futures Combined Asset Manager/Institutional Long/Short Diff
A18: X.US.ZQEOFAMISHT | B18: 30 day Fed Funds Options and Futures Combined Asset Manager/Institutional Short
A19: X.US.ZQEOFAMISPR | B19: 30 day Fed Funds Options and Futures Combined Asset Manager/Institutional Spreading
A20: X.US.ZQEOFDILONG | B20: 30 day Fed Funds Options and Futures Combined Dealer Intermediary Long
A21: X.US.ZQEOFDIDIFF | B21: 30 day Fed Funds Options and Futures Combined Dealer Intermediary Long/Short Diff
A22: X.US.ZQEOFDISHT | B22: 30 day Fed Funds Options and Futures Combined Dealer Intermediary Short
A23: X.US.ZQEOFDISPR | B23: 30 day Fed Funds Options and Futures Combined Dealer Intermediary Spreading
A24: X.US.ZQEOFLFLONG | B24: 30 day Fed Funds Options and Futures Combined Leveraged Funds Long
A25: X.US.ZQEOFLFDIFF | B25: 30 day Fed Funds Options and Futures Combined Leveraged Funds Long/Short Diff
A26: X.US.ZQEOFLFSHT | B26: 30 day Fed Funds Options and Futures Combined Leveraged Funds Short
A27: X.US.ZQEOFLFSPR | B27: 30 day Fed Funds Options and Futures Combined Leveraged Funds Spreading
A28: X.US.ZQEOFNRLONG | B28: 30 day Fed Funds Options and Futures Combined Nonreportable Long
A29: X.US.ZQEOFNRDIFF | B29: 30 day Fed Funds Options and Futures Combined Nonreportable Long/Short Diff
A30: X.US.ZQEOFNRSHT | B30: 30 day Fed Funds Options and Futures Combined Nonreportable Short
A31: X.US.ZQEOFORLONG | B31: 30 day Fed Funds Options and Futures Combined Other Reportables Long
A32: X.US.ZQEOFORDIFF | B32: 30 day Fed Funds Options and Futures Combined Other Reportables Long/Short Diff
A33: X.US.ZQEOFORSHT | B33: 30 day Fed Funds Options and Futures Combined Other Reportables Short
A34: X.US.ZQEOFORSPR | B34: 30 day Fed Funds Options and Futures Combined Other Reportables Spreading
A35: X.US.ZQEORLONG | B35: 30 day Fed Funds Other Reportables Long
A36: X.US.ZQEORDIFF | B36: 30 day Fed Funds Other Reportables Long/Short Diff
A37: X.US.ZQEORSHT | B37: 30 day Fed Funds Other Reportables Short
A38: X.US.ZQEORSPR | B38: 30 day Fed Funds Other Reportables Spreading
A39: X.US.DA6AMILONG | B39: AU Dollar Asset Manager/Institutional Long
A40: X.US.DA6AMIDIFF | B40: AU Dollar Asset Manager/Institutional Long/Short Diff
A41: X.US.DA6AMISHT | B41: AU Dollar Asset Manager/Institutional Short
A42: X.US.DA6AMISPR | B42: AU Dollar Asset Manager/Institutional Spreading
A43: X.US.DA6DILONG | B43: AU Dollar Dealer Intermediary Long
A44: X.US.DA6DIDIFF | B44: AU Dollar Dealer Intermediary Long/Short Diff
A45: X.US.DA6DISHT | B45: AU Dollar Dealer Intermediary Short
A46: X.US.DA6DISPR | B46: AU Dollar Dealer Intermediary Spreading
A47: X.US.DA6LFLONG | B47: AU Dollar Leveraged Funds Long
A48: X.US.DA6LFDIFF | B48: AU Dollar Leveraged Funds Long/Short Diff
A49: X.US.DA6LFSHT | B49: AU Dollar Leveraged Funds Short
A50: X.US.DA6LFSPR | B50: AU Dollar Leveraged Funds Spreading
A51: X.US.DA6DNRLONG | B51: AU Dollar Nonreportable Long
A52: X.US.DA6DNRDIFF | B52: AU Dollar Nonreportable Long/Short Diff
A53: X.US.DA6DNRSHT | B53: AU Dollar Nonreportable Short
A54: X.US.DA6OFAMILONG | B54: AU Dollar Options and Futures Combined Asset Manager/Institutional Long
A55: X.US.DA6OFAMIDIFF | B55: AU Dollar Options and Futures Combined Asset Manager/Institutional Long/Short Diff
A56: X.US.DA6OFAMISHT | B56: AU Dollar Options and Futures Combined Asset Manager/Institutional Short
A57: X.US.DA6OFAMISPR | B57: AU Dollar Options and Futures Combined Asset Manager/Institutional Spreading
A58: X.US.DA6OFDILONG | B58: AU Dollar Options and Futures Combined Dealer Intermediary Long
A59: X.US.DA6OFDIDIFF | B59: AU Dollar Options and Futures Combined Dealer Intermediary Long/Short Diff
A60: X.US.DA6OFDISHT | B60: AU Dollar Options and Futures Combined Dealer Intermediary Short
A61: X.US.DA6OFDISPR | B61: AU Dollar Options and Futures Combined Dealer Intermediary Spreading
A62: X.US.DA6OFLFLONG | B62: AU Dollar Options and Futures Combined Leveraged Funds Long
A63: X.US.DA6OFLFDIFF | B63: AU Dollar Options and Futures Combined Leveraged Funds Long/Short Diff
A64: X.US.DA6OFLFSHT | B64: AU Dollar Options and Futures Combined Leveraged Funds Short
A65: X.US.DA6OFLFSPR | B65: AU Dollar Options and Futures Combined Leveraged Funds Spreading
A66: X.US.DA6OFNRLONG | B66: AU Dollar Options and Futures Combined Nonreportable Long
A67: X.US.DA6OFNRDIFF | B67: AU Dollar Options and Futures Combined Nonreportable Long/Short Diff
A68: X.US.DA6OFNRSHT | B68: AU Dollar Options and Futures Combined Nonreportable Short
A69: X.US.DA6OFORLONG | B69: AU Dollar Options and Futures Combined Other Reportables Long
A70: X.US.DA6OFORDIFF | B70: AU Dollar Options and Futures Combined Other Reportables Long/Short Diff
A71: X.US.DA6OFORSHT | B71: AU Dollar Options and Futures Combined Other Reportables Short
A72: X.US.DA6OFORSPR | B72: AU Dollar Options and Futures Combined Other Reportables Spreading
A73: X.US.DA6ORLONG | B73: AU Dollar Other Reportables Long
A74: X.US.DA6ORDIFF | B74: AU Dollar Other Reportables Long/Short Diff
A75: X.US.DA6ORSHT | B75: AU Dollar Other Reportables Short
A76: X.US.DA6ORSPR | B76: AU Dollar Other Reportables Spreading
A77: X.US.ERAMILONG | B77: BBG Commod Index Asset Manager/Institutional Long
A78: X.US.ERAMIDIFF | B78: BBG Commod Index Asset Manager/Institutional Long/Short Diff
A79: X.US.ERAMISHT | B79: BBG Commod Index Asset Manager/Institutional Short
A80: X.US.ERAMISPR | B80: BBG Commod Index Asset Manager/Institutional Spreading
A81: X.US.ERDILONG | B81: BBG Commod Index Dealer Intermediary Long
A82: X.US.ERDIDIFF | B82: BBG Commod Index Dealer Intermediary Long/Short Diff
A83: X.US.ERDISHT | B83: BBG Commod Index Dealer Intermediary Short
A84: X.US.ERDISPR | B84: BBG Commod Index Dealer Intermediary Spreading
A85: X.US.ERLFLONG | B85: BBG Commod Index Leveraged Funds Long
A86: X.US.ERLFDIFF | B86: BBG Commod Index Leveraged Funds Long/Short Diff
A87: X.US.ERLFSHT | B87: BBG Commod Index Leveraged Funds Short
A88: X.US.ERLFSPR | B88: BBG Commod Index Leveraged Funds Spreading
A89: X.US.ERDNRLONG | B89: BBG Commod Index Nonreportable Long
A90: X.US.ERDNRDIFF | B90: BBG Commod Index Nonreportable Long/Short Diff
A91: X.US.ERDNRSHT | B91: BBG Commod Index Nonreportable Short
A92: X.US.EROFAMILONG | B92: BBG Commod Index Options and Futures Combined Asset Manager/Institutional Long
A93: X.US.EROFAMIDIFF | B93: BBG Commod Index Options and Futures Combined Asset Manager/Institutional Long/Short Diff
A94: X.US.EROFAMISHT | B94: BBG Commod Index Options and Futures Combined Asset Manager/Institutional Short
A95: X.US.EROFAMISPR | B95: BBG Commod Index Options and Futures Combined Asset Manager/Institutional Spreading
A96: X.US.EROFDILONG | B96: BBG Commod Index Options and Futures Combined Dealer Intermediary Long
A97: X.US.EROFDIDIFF | B97: BBG Commod Index Options and Futures Combined Dealer Intermediary Long/Short Diff
A98: X.US.EROFDISHT | B98: BBG Commod Index Options and Futures Combined Dealer Intermediary Short
A99: X.US.EROFDISPR | B99: BBG Commod Index Options and Futures Combined Dealer Intermediary Spreading
A100: X.US.EROFLFLONG | B100: BBG Commod Index Options and Futures Combined Leveraged Funds Long
A101: X.US.EROFLFDIFF | B101: BBG Commod Index Options and Futures Combined Leveraged Funds Long/Short Diff
A102: X.US.EROFLFSHT | B102: BBG Commod Index Options and Futures Combined Leveraged Funds Short
A103: X.US.EROFLFSPR | B103: BBG Commod Index Options and Futures Combined Leveraged Funds Spreading
A104: X.US.EROFNRLONG | B104: BBG Commod Index Options and Futures Combined Nonreportable Long
A105: X.US.EROFNRDIFF | B105: BBG Commod Index Options and Futures Combined Nonreportable Long/Short Diff
A106: X.US.EROFNRSHT | B106: BBG Commod Index Options and Futures Combined Nonreportable Short
A107: X.US.EROFORLONG | B107: BBG Commod Index Options and Futures Combined Other Reportables Long
A108: X.US.EROFORDIFF | B108: BBG Commod Index Options and Futures Combined Other Reportables Long/Short Diff
A109: X.US.EROFORSHT | B109: BBG Commod Index Options and Futures Combined Other Reportables Short
A110: X.US.EROFORSPR | B110: BBG Commod Index Options and Futures Combined Other Reportables Spreading
A111: X.US.ERORLONG | B111: BBG Commod Index Other Reportables Long
A112: X.US.ERORDIFF | B112: BBG Commod Index Other Reportables Long/Short Diff
A113: X.US.ERORSHT | B113: BBG Commod Index Other Reportables Short
A114: X.US.ERORSPR | B114: BBG Commod Index Other Reportables Spreading
A115: X.US.BTCAMILONG | B115: Bitcoin Asset Manager/Institutional Long
A116: X.US.BTCAMIDIFF | B116: Bitcoin Asset Manager/Institutional Long/Short Diff
A117: X.US.BTCAMISHT | B117: Bitcoin Asset Manager/Institutional Short
A118: X.US.BTCAMISPR | B118: Bitcoin Asset Manager/Institutional Spreading
A119: X.US.BTCDILONG | B119: Bitcoin Dealer Intermediary Long
A120: X.US.BTCDIDIFF | B120: Bitcoin Dealer Intermediary Long/Short Diff
A121: X.US.BTCDISHT | B121: Bitcoin Dealer Intermediary Short
A122: X.US.BTCDISPR | B122: Bitcoin Dealer Intermediary Spreading
A123: X.US.BTCLFLONG | B123: Bitcoin Leveraged Funds Long
A124: X.US.BTCLFDIFF | B124: Bitcoin Leveraged Funds Long/Short Diff
A125: X.US.BTCLFSHT | B125: Bitcoin Leveraged Funds Short
A126: X.US.BTCLFSPR | B126: Bitcoin Leveraged Funds Spreading
A127: X.US.BTCDNRLONG | B127: Bitcoin Nonreportable Long
A128: X.US.BTCDNRDIFF | B128: Bitcoin Nonreportable Long/Short Diff
A129: X.US.BTCDNRSHT | B129: Bitcoin Nonreportable Short
A130: X.US.BTCOFAMILONG | B130: Bitcoin Options and Futures Combined Asset Manager/Institutional Long
A131: X.US.BTCOFAMIDIFF | B131: Bitcoin Options and Futures Combined Asset Manager/Institutional Long/Short Diff
A132: X.US.BTCOFAMISHT | B132: Bitcoin Options and Futures Combined Asset Manager/Institutional Short
A133: X.US.BTCOFAMISPR | B133: Bitcoin Options and Futures Combined Asset Manager/Institutional Spreading
A134: X.US.BTCOFDILONG | B134: Bitcoin Options and Futures Combined Dealer Intermediary Long
A135: X.US.BTCOFDIDIFF | B135: Bitcoin Options and Futures Combined Dealer Intermediary Long/Short Diff
A136: X.US.BTCOFDISHT | B136: Bitcoin Options and Futures Combined Dealer Intermediary Short
A137: X.US.BTCOFDISPR | B137: Bitcoin Options and Futures Combined Dealer Intermediary Spreading
A138: X.US.BTCOFLFLONG | B138: Bitcoin Options and Futures Combined Leveraged Funds Long
A139: X.US.BTCOFLFDIFF | B139: Bitcoin Options and Futures Combined Leveraged Funds Long/Short Diff
A140: X.US.BTCOFLFSHT | B140: Bitcoin Options and Futures Combined Leveraged Funds Short
A141: X.US.BTCOFLFSPR | B141: Bitcoin Options and Futures Combined Leveraged Funds Spreading
A142: X.US.BTCOFNRLONG | B142: Bitcoin Options and Futures Combined Nonreportable Long
A143: X.US.BTCOFNRDIFF | B143: Bitcoin Options and Futures Combined Nonreportable Long/Short Diff
A144: X.US.BTCOFNRSHT | B144: Bitcoin Options and Futures Combined Nonreportable Short
A145: X.US.BTCOFORLONG | B145: Bitcoin Options and Futures Combined Other Reportables Long
A146: X.US.BTCOFORDIFF | B146: Bitcoin Options and Futures Combined Other Reportables Long/Short Diff
A147: X.US.BTCOFORSHT | B147: Bitcoin Options and Futures Combined Other Reportables Short
A148: X.US.BTCOFORSPR | B148: Bitcoin Options and Futures Combined Other Reportables Spreading
A149: X.US.BTCORLONG | B149: Bitcoin Other Reportables Long
A150: X.US.BTCORDIFF | B150: Bitcoin Other Reportables Long/Short Diff
A151: X.US.BTCORSHT | B151: Bitcoin Other Reportables Short
A152: X.US.BTCORSPR | B152: Bitcoin Other Reportables Spreading
A153: X.US.BR6AMILONG | B153: Brazil Real Asset Manager/Institutional Long
A154: X.US.BR6AMIDIFF | B154: Brazil Real Asset Manager/Institutional Long/Short Diff
A155: X.US.BR6AMISHT | B155: Brazil Real Asset Manager/Institutional Short
A156: X.US.BR6AMISPR | B156: Brazil Real Asset Manager/Institutional Spreading
A157: X.US.BR6DILONG | B157: Brazil Real Dealer Intermediary Long
A158: X.US.BR6DIDIFF | B158: Brazil Real Dealer Intermediary Long/Short Diff
A159: X.US.BR6DISHT | B159: Brazil Real Dealer Intermediary Short
A160: X.US.BR6DISPR | B160: Brazil Real Dealer Intermediary Spreading
A161: X.US.BR6LFLONG | B161: Brazil Real Leveraged Funds Long
A162: X.US.BR6LFDIFF | B162: Brazil Real Leveraged Funds Long/Short Diff
A163: X.US.BR6LFSHT | B163: Brazil Real Leveraged Funds Short
A164: X.US.BR6LFSPR | B164: Brazil Real Leveraged Funds Spreading
A165: X.US.BR6DNRLONG | B165: Brazil Real Nonreportable Long
A166: X.US.BR6DNRDIFF | B166: Brazil Real Nonreportable Long/Short Diff
A167: X.US.BR6DNRSHT | B167: Brazil Real Nonreportable Short
A168: X.US.BR6OFAMILONG | B168: Brazil Real Options and Futures Combined Asset Manager/Institutional Long
A169: X.US.BR6OFAMIDIFF | B169: Brazil Real Options and Futures Combined Asset Manager/Institutional Long/Short Diff
A170: X.US.BR6OFAMISHT | B170: Brazil Real Options and Futures Combined Asset Manager/Institutional Short
A171: X.US.BR6OFAMISPR | B171: Brazil Real Options and Futures Combined Asset Manager/Institutional Spreading
A172: X.US.BR6OFDILONG | B172: Brazil Real Options and Futures Combined Dealer Intermediary Long
A173: X.US.BR6OFDIDIFF | B173: Brazil Real Options and Futures Combined Dealer Intermediary Long/Short Diff
A174: X.US.BR6OFDISHT | B174: Brazil Real Options and Futures Combined Dealer Intermediary Short
A175: X.US.BR6OFDISPR | B175: Brazil Real Options and Futures Combined Dealer Intermediary Spreading
A176: X.US.BR6OFLFLONG | B176: Brazil Real Options and Futures Combined Leveraged Funds Long
A177: X.US.BR6OFLFDIFF | B177: Brazil Real Options and Futures Combined Leveraged Funds Long/Short Diff
A178: X.US.BR6OFLFSHT | B178: Brazil Real Options and Futures Combined Leveraged Funds Short
A179: X.US.BR6OFLFSPR | B179: Brazil Real Options and Futures Combined Leveraged Funds Spreading
A180: X.US.BR6OFNRLONG | B180: Brazil Real Options and Futures Combined Nonreportable Long
A181: X.US.BR6OFNRDIFF | B181: Brazil Real Options and Futures Combined Nonreportable Long/Short Diff
A182: X.US.BR6OFNRSHT | B182: Brazil Real Options and Futures Combined Nonreportable Short
A183: X.US.BR6OFORLONG | B183: Brazil Real Options and Futures Combined Other Reportables Long
A184: X.US.BR6OFORDIFF | B184: Brazil Real Options and Futures Combined Other Reportables Long/Short Diff
A185: X.US.BR6OFORSHT | B185: Brazil Real Options and Futures Combined Other Reportables Short
A186: X.US.BR6OFORSPR | B186: Brazil Real Options and Futures Combined Other Reportables Spreading
A187: X.US.BR6ORLONG | B187: Brazil Real Other Reportables Long
A188: X.US.BR6ORDIFF | B188: Brazil Real Other Reportables Long/Short Diff
A189: X.US.BR6ORSHT | B189: Brazil Real Other Reportables Short
A190: X.US.BR6ORSPR | B190: Brazil Real Other Reportables Spreading
A191: X.US.BP6AMILONG | B191: British Pound Asset Manager/Institutional Long
A192: X.US.BP6AMIDIFF | B192: British Pound Asset Manager/Institutional Long/Short Diff
A193: X.US.BP6AMISHT | B193: British Pound Asset Manager/Institutional Short
A194: X.US.BP6AMISPR | B194: British Pound Asset Manager/Institutional Spreading
A195: X.US.BP6DILONG | B195: British Pound Dealer Intermediary Long
A196: X.US.BP6DIDIFF | B196: British Pound Dealer Intermediary Long/Short Diff
A197: X.US.BP6DISHT | B197: British Pound Dealer Intermediary Short
A198: X.US.BP6DISPR | B198: British Pound Dealer Intermediary Spreading
A199: X.US.BP6LFLONG | B199: British Pound Leveraged Funds Long
A200: X.US.BP6LFDIFF | B200: British Pound Leveraged Funds Long/Short Diff
... 2903 more rows
